Workbook

Sheet datos
A1: 2 | B1: =VLOOKUP(A1,$A$2:$B$13,2,0) -> FEBRERO
A2: 1 | B2: ENERO
A3: 2 | B3: FEBRERO
A4: 3 | B4: MARZO
A5: 4 | B5: ABRIL
A6: 5 | B6: MAYO
A7: 6 | B7: JUNIO
A8: 7 | B8: JULIO
A9: 8 | B9: AGOSTO
A10: 9 | B10: SEPTIEMBRE
A11: 10 | B11: OCTUBRE
A12: 11 | B12: NOVIEMBRE
A13: 12 | B13: DICIEMBRE

Sheet GRAFICO
C2: Fuente: Pharma360° | H2: TABLERO DE CONTROL VENTAS | N2: =+fuentes!F5 -> 0.9887478974 | P2: =+fuentes!F6 -> 0.4991894738
C3: Análisis Gráfico por linea/Producto/Cliente
C4: Ult. Act.: | F4: =+DASH!$C$5 -> 2016-03-07T16:05:54 | H4: =+DASH!I4 -> Selección: Inf. MENSUAL A ABRIL /Lin: (ALL) /Marca: MERC: 18-GLYCEROL/ /Cliente: (ALL)
C9: =+DASH!C9 -> GENERAL
C10: =+DASH!C10 -> SNC
C11: =+DASH!C11 -> CARDIOLOGICA
C12: =+DASH!C12 -> RESPIRATORIA
C13: =+DASH!C13 -> METABOLICOS
C14: =+DASH!C14 -> OFTALMOLOGICA
C15: =+DASH!C15 -> GINECOLOCICA
C16: =+DASH!C16 -> Total general
F22: =IF(fuentes!$B$14=1,"%Cumplimiento en Valores ($) ","%Cumplimiento en Unidades ") -> %Cumplimiento en Valores ($) | G22: NUR PLAN | H22: NUR VTA. | I22: %VAR | J22: TOTAL
E23: =IF($J$22="LINEA",DASH!C19,DASH!$C9) -> GENERAL | F23: =IF(fuentes!$B$14=1,IF($J$22="LINEA",DASH!P19,DASH!$P9),IF($J$22="LINEA",DASH!I19,DASH!$I9)) -> 1.003349495 | G23: =IF($J$22="LINEA",DASH!R19,DASH!R9) -> 0 | H23: =IF($J$22="LINEA",DASH!S19,+DASH!S9) -> 0.5043709772 | I23: =(+H23/G23)-1 -> 
E24: =IF($J$22="LINEA",DASH!C20,DASH!$C10) -> SNC | F24: =IF(fuentes!$B$14=1,IF($J$22="LINEA",DASH!P20,DASH!$P10),IF($J$22="LINEA",DASH!I20,DASH!$I10)) -> 0.9841130367 | G24: =IF($J$22="LINEA",DASH!R20,DASH!R10) -> 0 | H24: =IF($J$22="LINEA",DASH!S20,+DASH!S10) -> 0.4956781526 | I24: =(+H24/G24)-1 -> 
E25: =IF($J$22="LINEA",DASH!C21,DASH!$C11) -> CARDIOLOGICA | F25: =IF(fuentes!$B$14=1,IF($J$22="LINEA",DASH!P21,DASH!$P11),IF($J$22="LINEA",DASH!I21,DASH!$I11)) -> 0.9853161936 | G25: =IF($J$22="LINEA",DASH!R21,DASH!R11) -> 0 | H25: =IF($J$22="LINEA",DASH!S21,+DASH!S11) -> 0.4991891123
E26: =IF($J$22="LINEA",DASH!C22,DASH!$C12) -> RESPIRATORIA | F26: =IF(fuentes!$B$14=1,IF($J$22="LINEA",DASH!P22,DASH!$P12),IF($J$22="LINEA",DASH!I22,DASH!$I12)) -> 0.9634395199 | G26: =IF($J$22="LINEA",DASH!R22,DASH!R12) -> 0 | H26: =IF($J$22="LINEA",DASH!S22,+DASH!S12) -> 0.4977362083
E27: =IF($J$22="LINEA",DASH!C23,DASH!$C13) -> METABOLICOS | F27: =IF(fuentes!$B$14=1,IF($J$22="LINEA",DASH!P23,DASH!$P13),IF($J$22="LINEA",DASH!I23,DASH!$I13)) -> 0.9805432193 | G27: =IF($J$22="LINEA",DASH!R23,DASH!R13) -> 0 | H27: =IF($J$22="LINEA",DASH!S23,+DASH!S13) -> 0.4946663267
E28: =IF($J$22="LINEA",DASH!C24,DASH!$C14) -> OFTALMOLOGICA | F28: =IF(fuentes!$B$14=1,IF($J$22="LINEA",DASH!P24,DASH!$P14),IF($J$22="LINEA",DASH!I24,DASH!$I14)) -> 0.99517172 | G28: =IF($J$22="LINEA",DASH!R24,DASH!R14) -> 0 | H28: =IF($J$22="LINEA",DASH!S24,+DASH!S14) -> 0.5002864904
E29: TOTAL | F29: =IF(fuentes!$B$14=1,IF($J$22="LINEA",DASH!P31,DASH!$P16),IF($J$22="LINEA",DASH!I31,DASH!$I16)) -> 0.9887478974 | G29: =IF($J$22="LINEA",DASH!R31,DASH!R16) -> 0 | H29: =IF($J$22="LINEA",DASH!S31,+DASH!S16) -> 0.4991894738

Sheet DASH
C2: Fuente: Pharma360° | K2: TABLERO DE CONTROL VENTAS | U2: =+fuentes!F5 -> 0.9887478974 | W2: =+fuentes!F6 -> 0.4991894738
C3: Análisis por linea/Producto/Cliente
C4: Ult. Act.: | I4: ="Selección: Inf. "&fuentes!C30&" /Lin: "&fuentes!Y2&" /Marca: "&fuentes!Y3&"/"&fuentes!AA4&" /Cliente: "&fuentes!Y5 -> Selección: Inf. MENSUAL A ABRIL /Lin: (ALL) /Marca: MERC: 18-GLYCEROL/ /Cliente: (ALL)
C5: 2016-03-07T16:05:54 | O5: ="Año actual : "&fuentes!C6 -> Año actual : 2016 | AK5: =100%-AL5 -> 0.01125210261 | AL5: =+fuentes!F5 -> 0.9887478974
AK6: 1
AK7: 0
C8: LINEAS | D8: PLAN (U) | E8: VTA (U) | F8: VTA (U) BONIF. | G8: TOT VTA (U) | H8: %BONI. (U) | I8: %CUM (U) | K8: FCST (U) | N8: PLAN ($) | O8: VTA ($) | P8: %CUM ($) | R8: NUR PLAN | S8: NUR VTA
C9: =fuentes!H12 -> GENERAL | D9: =IFERROR((VLOOKUP($C9,fuentes!$H$11:$P$19,2,0))," ") -> 60317.38 | E9: =IFERROR((VLOOKUP($C9,fuentes!$H$11:$P$19,3,0))," ") -> 60079.62 | F9: =IFERROR((VLOOKUP($C9,fuentes!$H$11:$P$19,4,0))," ") -> 60027.39 | G9: =IFERROR((VLOOKUP($C9,fuentes!$H$11:$P$19,5,0))," ") -> 120107.01 | H9: =IFERROR((VLOOKUP($C9,fuentes!$H$11:$P$19,6,0))," ") -> 0.9991306536 | I9: =IFERROR((+E9/D9),0) -> 0.9960581842 | J9: =IFERROR((+E9/D9),0) -> 0.9960581842 | K9: =IF(fuentes!$B$14=1," ",SUMIF(#REF!,DASH!C9,#REF!)) ->  | N9: =IFERROR((VLOOKUP($C9,fuentes!$H$11:$P$19,7,0))," ") -> 60376.26 | O9: =IFERROR((VLOOKUP($C9,fuentes!$H$11:$P$19,8,0))," ") -> 60578.49 | P9: =IFERROR((+O9/N9),0) -> 1.003349495 | Q9: =IFERROR((+O9/N9),0) -> 1.003349495 | R9: =IFERROR((VLOOKUP($C9,fuentes!$H$11:$Q$19,10,0))," ") -> 0 | S9: =IFERROR((+O9/G9),0) -> 0.5043709772
C10: =fuentes!H13 -> SNC | D10: =IFERROR((VLOOKUP($C10,fuentes!$H$11:$P$19,2,0))," ") -> 51903.7 | E10: =IFERROR((VLOOKUP($C10,fuentes!$H$11:$P$19,3,0))," ") -> 51695.51 | F10: =IFERROR((VLOOKUP($C10,fuentes!$H$11:$P$19,4,0))," ") -> 51834.29 | G10: =IFERROR((VLOOKUP($C10,fuentes!$H$11:$P$19,5,0))," ") -> 103529.8 | H10: =IFERROR((VLOOKUP($C10,fuentes!$H$11:$P$19,6,0))," ") -> 1.002684566 | I10: =IFERROR((+E10/D10),0) -> 0.9959889179 | J10: 0.9959889179 | K10: =IF(fuentes!$B$14=1," ",SUMIF(#REF!,DASH!C10,#REF!)) ->  | N10: =IFERROR((VLOOKUP($C10,fuentes!$H$11:$P$19,7,0))," ") -> 52145.9 | O10: =IFERROR((VLOOKUP($C10,fuentes!$H$11:$P$19,8,0))," ") -> 51317.46 | P10: =IFERROR((+O10/N10),0) -> 0.9841130367 | Q10: =IFERROR((+O10/N10),0) -> 0.9841130367 | R10: =IFERROR((VLOOKUP($C10,fuentes!$H$11:$Q$19,10,0))," ") -> 0 | S10: =IFERROR((+O10/G10),0) -> 0.4956781526
C11: =fuentes!H14 -> CARDIOLOGICA | D11: =IFERROR((VLOOKUP($C11,fuentes!$H$11:$P$19,2,0))," ") -> 37070.97 | E11: =IFERROR((VLOOKUP($C11,fuentes!$H$11:$P$19,3,0))," ") -> 36668.4 | F11: =IFERROR((VLOOKUP($C11,fuentes!$H$11:$P$19,4,0))," ") -> 36609.32 | G11: =IFERROR((VLOOKUP($C11,fuentes!$H$11:$P$19,5,0))," ") -> 73277.72 | H11: =IFERROR((VLOOKUP($C11,fuentes!$H$11:$P$19,6,0))," ") -> 0.9983888034 | I11: 0.9891405593 | J11: 0.9891405593 | K11: =IF(fuentes!$B$14=1," ",SUMIF(#REF!,DASH!C11,#REF!)) ->  | N11: =IFERROR((VLOOKUP($C11,fuentes!$H$11:$P$19,7,0))," ") -> 37124.57 | O11: =IFERROR((VLOOKUP($C11,fuentes!$H$11:$P$19,8,0))," ") -> 36579.44 | P11: 0.9853161936 | Q11: 0.9853161936 | R11: =IFERROR((VLOOKUP($C11,fuentes!$H$11:$Q$19,10,0))," ") -> 0 | S11: 0.4991891123
C12: =fuentes!H15 -> RESPIRATORIA | D12: =IFERROR((VLOOKUP($C12,fuentes!$H$11:$P$19,2,0))," ") -> 15992.44 | E12: =IFERROR((VLOOKUP($C12,fuentes!$H$11:$P$19,3,0))," ") -> 15404.67 | F12: =IFERROR((VLOOKUP($C12,fuentes!$H$11:$P$19,4,0))," ") -> 15404.26 | G12: =IFERROR((VLOOKUP($C12,fuentes!$H$11:$P$19,5,0))," ") -> 30808.93 | H12: =IFERROR((VLOOKUP($C12,fuentes!$H$11:$P$19,6,0))," ") -> 0.9999733847 | I12: 0.9632470092 | J12: 0.9632470092 | K12: =IF(fuentes!$B$14=1," ",SUMIF(#REF!,DASH!C12,#REF!)) ->  | N12: =IFERROR((VLOOKUP($C12,fuentes!$H$11:$P$19,7,0))," ") -> 15916.64 | O12: =IFERROR((VLOOKUP($C12,fuentes!$H$11:$P$19,8,0))," ") -> 15334.72 | P12: 0.9634395199 | Q12: 0.9634395199 | R12: =IFERROR((VLOOKUP($C12,fuentes!$H$11:$Q$19,10,0))," ") -> 0 | S12: 0.4977362083
C13: =fuentes!H16 -> METABOLICOS | D13: =IFERROR((VLOOKUP($C13,fuentes!$H$11:$P$19,2,0))," ") -> 11913.54 | E13: =IFERROR((VLOOKUP($C13,fuentes!$H$11:$P$19,3,0))," ") -> 11981.19 | F13: =IFERROR((VLOOKUP($C13,fuentes!$H$11:$P$19,4,0))," ") -> 11746.36 | G13: =IFERROR((VLOOKUP($C13,fuentes!$H$11:$P$19,5,0))," ") -> 23727.55 | H13: =IFERROR((VLOOKUP($C13,fuentes!$H$11:$P$19,6,0))," ") -> 0.9804001105 | I13: 1.005678413 | J13: 1.005678413 | K13: =IF(fuentes!$B$14=1," ",SUMIF(#REF!,DASH!C13,#REF!)) ->  | N13: =IFERROR((VLOOKUP($C13,fuentes!$H$11:$P$19,7,0))," ") -> 11970.12 | O13: =IFERROR((VLOOKUP($C13,fuentes!$H$11:$P$19,8,0))," ") -> 11737.22 | P13: 0.9805432193 | Q13: 0.9805432193 | R13: =IFERROR((VLOOKUP($C13,fuentes!$H$11:$Q$19,10,0))," ") -> 0 | S13: 0.4946663267
C14: =fuentes!H17 -> OFTALMOLOGICA | D14: =IFERROR((VLOOKUP($C14,fuentes!$H$11:$P$19,2,0))," ") -> 6433.46 | E14: =IFERROR((VLOOKUP($C14,fuentes!$H$11:$P$19,3,0))," ") -> 6438.42 | F14: =IFERROR((VLOOKUP($C14,fuentes!$H$11:$P$19,4,0))," ") -> 6493.95 | G14: =IFERROR((VLOOKUP($C14,fuentes!$H$11:$P$19,5,0))," ") -> 12932.37 | H14: =IFERROR((VLOOKUP($C14,fuentes!$H$11:$P$19,6,0))," ") -> 1.008624787 | I14: 1.000770969 | J14: 1.000770969 | K14: =IF(fuentes!$B$14=1," ",SUMIF(#REF!,DASH!C14,#REF!)) ->  | N14: =IFERROR((VLOOKUP($C14,fuentes!$H$11:$P$19,7,0))," ") -> 6501.28 | O14: =IFERROR((VLOOKUP($C14,fuentes!$H$11:$P$19,8,0))," ") -> 6469.89 | P14: 0.99517172 | Q14: 0.99517172 | R14: =IFERROR((VLOOKUP($C14,fuentes!$H$11:$Q$19,10,0))," ") -> 0 | S14: 0.5002864904
C15: =fuentes!H18 -> GINECOLOCICA | D15: =IFERROR((VLOOKUP($C15,fuentes!$H$11:$P$19,2,0))," ") -> 4720.65 | E15: =IFERROR((VLOOKUP($C15,fuentes!$H$11:$P$19,3,0))," ") -> 4686.1 | F15: =IFERROR((VLOOKUP($C15,fuentes!$H$11:$P$19,4,0))," ") -> 4749.4 | G15: =IFERROR((VLOOKUP($C15,fuentes!$H$11:$P$19,5,0))," ") -> 9435.5 | H15: =IFERROR((VLOOKUP($C15,fuentes!$H$11:$P$19,6,0))," ") -> 1.013508034 | I15: 0.9926810926 | J15: 0.9926810926 | K15: =IF(fuentes!$B$14=1," ",SUMIF(#REF!,DASH!C15,#REF!)) ->  | N15: =IFERROR((VLOOKUP($C15,fuentes!$H$11:$P$19,7,0))," ") -> 4695.29 | O15: =IFERROR((VLOOKUP($C15,fuentes!$H$11:$P$19,8,0))," ") -> 4589.23 | P15: 0.9774114059 | Q15: 0.9774114059 | R15: =IFERROR((VLOOKUP($C15,fuentes!$H$11:$Q$19,10,0))," ") -> 0 | S15: 0.4863791002
C16: Total general | D16: =VLOOKUP($C16,fuentes!$H$11:$P$19,2,0) -> 188352.14 | E16: =VLOOKUP($C16,fuentes!$H$11:$P$19,3,0) -> 186953.91 | F16: =VLOOKUP($C16,fuentes!$H$11:$P$19,4,0) -> 186864.97 | G16: =VLOOKUP($C16,fuentes!$H$11:$P$19,5,0) -> 373818.88 | H16: =VLOOKUP($C16,fuentes!$H$11:$P$19,6,0) -> 0.9995242678 | I16: =IFERROR((+E16/D16),0) -> 0.9925765112 | J16: 0.9925765112 | K16: =SUM(K9:K15) -> 0 | N16: =VLOOKUP($C16,fuentes!$H$11:$P$19,7,0) -> 188730.06 | O16: =VLOOKUP($C16,fuentes!$H$11:$P$19,8,0) -> 186606.45 | P16: =IFERROR((+O16/N16),0) -> 0.9887478974 | Q16: 0.9887478974 | R16: =VLOOKUP($C16,fuentes!$H$11:$Q$19,10,0) -> 0 | S16: 0.4991894738
C18: MARCAS | D18: PLAN (U) | E18: VTA (U) | F18: VTA (U) BONIF. | G18: TOT VTA (U) | H18: %BONI. (U) | I18: %CUM (U) | K18: FCST (U) | N18: PLAN ($) | O18: VTA ($) | P18: %CUM ($) | R18: NUR PLAN | S18: NUR VTA | U18: ($/.000) | V18: ENE | W18: FEB | X18: MAR | Y18: ABR | Z18: MAY | AA18: JUN | AB18: JUL | AC18: AGO | AD18: SEP | AE18: OCT | AF18: NOV | AG18: DIC | AH18: TOTAL
B19: 1 | C19: =IFERROR((VLOOKUP($B19,fuentes!$G$71:$P$161,2,0))," ") -> Rótulos de fila | D19: =IFERROR((VLOOKUP($B19,fuentes!$G$71:$P$161,3,0))," ") -> UNI PLAN | E19: =VLOOKUP($B19,fuentes!$G$71:$P$161,4,0) -> UNI NET | F19: =VLOOKUP($B19,fuentes!$G$71:$P$161,5,0) -> UNI BONIF. | G19: =VLOOKUP($B19,fuentes!$G$71:$P$161,6,0) -> TOT UNI | H19: =IFERROR((VLOOKUP($B19,fuentes!$G$71:$P$161,7,0))," ") -> %Bonif. | I19: =IFERROR((+E19/D19),0) -> 0 | J19: =IFERROR((+E19/D19),0) -> 0 | K19: =IF(fuentes!$B$14=1," ",SUMIF(#REF!,DASH!C19,#REF!)) ->  | N19: =VLOOKUP($B19,fuentes!$G$71:$P$161,8,0) -> VALOR_PLAN | O19: =VLOOKUP($B19,fuentes!$G$71:$P$161,9,0) -> VENTA ($) | P19: =IFERROR((+O19/N19),0) -> 0 | Q19: =IFERROR((+O19/N19),0) -> 0 | R19: =VLOOKUP($B19,fuentes!$G$71:$Q$161,11,0) -> 0 | S19: =IFERROR((+O19/G19),0) -> 0 | U19: ="Vta ($) "&fuentes!C5 -> Vta ($) 2015 | V19: =VLOOKUP(fuentes!$X14,fuentes!$AB$13:$AQ$28,MATCH(fuentes!AE$1,fuentes!$AB$12:$AQ$12,0),0) ->  | W19: =VLOOKUP(fuentes!$X14,fuentes!$AB$13:$AQ$28,MATCH(fuentes!AF$1,fuentes!$AB$12:$AQ$12,0),0) ->  | X19: =VLOOKUP(fuentes!$X14,fuentes!$AB$13:$AQ$28,MATCH(fuentes!AG$1,fuentes!$AB$12:$AQ$12,0),0) ->  | Y19: =VLOOKUP(fuentes!$X14,fuentes!$AB$13:$AQ$28,MATCH(fuentes!AH$1,fuentes!$AB$12:$AQ$12,0),0) ->  | Z19: =VLOOKUP(fuentes!$X14,fuentes!$AB$13:$AQ$28,MATCH(fuentes!AI$1,fuentes!$AB$12:$AQ$12,0),0) ->  | AA19: =VLOOKUP(fuentes!$X14,fuentes!$AB$13:$AQ$28,MATCH(fuentes!AJ$1,fuentes!$AB$12:$AQ$12,0),0) ->  | AB19: =VLOOKUP(fuentes!$X14,fuentes!$AB$13:$AQ$28,MATCH(fuentes!AK$1,fuentes!$AB$12:$AQ$12,0),0) ->  | AC19: =VLOOKUP(fuentes!$X14,fuentes!$AB$13:$AQ$28,MATCH(fuentes!AL$1,fuentes!$AB$12:$AQ$12,0),0) ->  | AD19: =VLOOKUP(fuentes!$X14,fuentes!$AB$13:$AQ$28,MATCH(fuentes!AM$1,fuentes!$AB$12:$AQ$12,0),0) ->  | AE19: =VLOOKUP(fuentes!$X14,fuentes!$AB$13:$AQ$28,MATCH(fuentes!AN$1,fuentes!$AB$12:$AQ$12,0),0) ->  | AF19: =VLOOKUP(fuentes!$X14,fuentes!$AB$13:$AQ$28,MATCH(fuentes!AO$1,fuentes!$AB$12:$AQ$12,0),0) ->  | AG19: =VLOOKUP(fuentes!$X14,fuentes!$AB$13:$AQ$28,MATCH(fuentes!AP$1,fuentes!$AB$12:$AQ$12,0),0) ->  | AH19: =SUM(V19:AG19) -> 
B20: =+B19+1 -> 2 | C20: =VLOOKUP($B20,fuentes!$G$71:$P$161,2,0) -> MERC: 19-LINAGLIPTINA | D20: =IFERROR((VLOOKUP($B20,fuentes!$G$71:$P$161,3,0))," ") -> 18199.98 | E20: =VLOOKUP($B20,fuentes!$G$71:$P$161,4,0) -> 18195.06 | F20: =VLOOKUP($B20,fuentes!$G$71:$P$161,5,0) -> 18134.28 | G20: =VLOOKUP($B20,fuentes!$G$71:$P$161,6,0) -> 36329.34 | H20: =IFERROR((VLOOKUP($B20,fuentes!$G$71:$P$161,7,0))," ") -> 0.9966595329 | I20: =IFERROR((+E20/D20),0) -> 0.99972967 | J20: =IFERROR((+E20/D20),0) -> 0.99972967 | K20: =IF(fuentes!$B$14=1," ",SUMIF(#REF!,DASH!C20,#REF!)) ->  | N20: =VLOOKUP($B20,fuentes!$G$71:$P$161,8,0) -> 18407.97 | O20: =VLOOKUP($B20,fuentes!$G$71:$P$161,9,0) -> 18224.07 | P20: =IFERROR((+O20/N20),0) -> 0.9900097621 | Q20: =IFERROR((+O20/N20),0) -> 0.9900097621 | R20: =VLOOKUP($B20,fuentes!$G$71:$Q$161,11,0) -> 0 | S20: =IFERROR((+O20/G20),0) -> 0.5016350421 | U20: ="Plan ($) "&fuentes!C6 -> Plan ($) 2016 | V20: =VLOOKUP(fuentes!$X15,fuentes!$AB$13:$AQ$28,MATCH(fuentes!AE$1,fuentes!$AB$12:$AQ$12,0),0) -> 2.11 | W20: =VLOOKUP(fuentes!$X15,fuentes!$AB$13:$AQ$28,MATCH(fuentes!AF$1,fuentes!$AB$12:$AQ$12,0),0) -> 1.64 | X20: =VLOOKUP(fuentes!$X15,fuentes!$AB$13:$AQ$28,MATCH(fuentes!AG$1,fuentes!$AB$12:$AQ$12,0),0) -> 1.45 | Y20: =VLOOKUP(fuentes!$X15,fuentes!$AB$13:$AQ$28,MATCH(fuentes!AH$1,fuentes!$AB$12:$AQ$12,0),0) -> 590.26 | Z20: =VLOOKUP(fuentes!$X15,fuentes!$AB$13:$AQ$28,MATCH(fuentes!AI$1,fuentes!$AB$12:$AQ$12,0),0) -> 1040.2 | AA20: =VLOOKUP(fuentes!$X15,fuentes!$AB$13:$AQ$28,MATCH(fuentes!AJ$1,fuentes!$AB$12:$AQ$12,0),0) -> 609.89 | AB20: =VLOOKUP(fuentes!$X15,fuentes!$AB$13:$AQ$28,MATCH(fuentes!AK$1,fuentes!$AB$12:$AQ$12,0),0) -> 613.97 | AC20: =VLOOKUP(fuentes!$X15,fuentes!$AB$13:$AQ$28,MATCH(fuentes!AL$1,fuentes!$AB$12:$AQ$12,0),0) -> 883.38 | AD20: =VLOOKUP(fuentes!$X15,fuentes!$AB$13:$AQ$28,MATCH(fuentes!AM$1,fuentes!$AB$12:$AQ$12,0),0) -> 807.55 | AE20: =VLOOKUP(fuentes!$X15,fuentes!$AB$13:$AQ$28,MATCH(fuentes!AN$1,fuentes!$AB$12:$AQ$12,0),0) -> 692.14 | AF20: =VLOOKUP(fuentes!$X15,fuentes!$AB$13:$AQ$28,MATCH(fuentes!AO$1,fuentes!$AB$12:$AQ$12,0),0) -> 688 | AG20: =VLOOKUP(fuentes!$X15,fuentes!$AB$13:$AQ$28,MATCH(fuentes!AP$1,fuentes!$AB$12:$AQ$12,0),0) -> 643.51 | AH20: =SUM(V20:AG20) -> 6574.1
B21: =+B20+1 -> 3 | C21: =VLOOKUP($B21,fuentes!$G$71:$P$161,2,0) -> MERC: 18-GLYCEROL | D21: =IFERROR((VLOOKUP($B21,fuentes!$G$71:$P$161,3,0))," ") -> 14606.68 | E21: =VLOOKUP($B21,fuentes!$G$71:$P$161,4,0) -> 14536.54 | F21: =VLOOKUP($B21,fuentes!$G$71:$P$161,5,0) -> 14529.92 | G21: =VLOOKUP($B21,fuentes!$G$71:$P$161,6,0) -> 29066.46 | H21: =IFERROR((VLOOKUP($B21,fuentes!$G$71:$P$161,7,0))," ") -> 0.9995445959 | I21: 0.9951980875 | J21: 0.9951980875 | K21: =IF(fuentes!$B$14=1," ",SUMIF(#REF!,DASH!C21,#REF!)) ->  | N21: =VLOOKUP($B21,fuentes!$G$71:$P$161,8,0) -> 14540.8 | O21: =VLOOKUP($B21,fuentes!$G$71:$P$161,9,0) -> 14683.31 | P21: 1.009800699 | Q21: 1.009800699 | R21: =VLOOKUP($B21,fuentes!$G$71:$Q$161,11,0) -> 0 | S21: 0.5051633395 | U21: ="Vta ($) "&fuentes!C6 -> Vta ($) 2016 | V21: =VLOOKUP(fuentes!$X16,fuentes!$AB$13:$AQ$28,MATCH(fuentes!AE$1,fuentes!$AB$12:$AQ$12,0),0) ->  | W21: =VLOOKUP(fuentes!$X16,fuentes!$AB$13:$AQ$28,MATCH(fuentes!AF$1,fuentes!$AB$12:$AQ$12,0),0) ->  | X21: =VLOOKUP(fuentes!$X16,fuentes!$AB$13:$AQ$28,MATCH(fuentes!AG$1,fuentes!$AB$12:$AQ$12,0),0) ->  | Y21: =VLOOKUP(fuentes!$X16,fuentes!$AB$13:$AQ$28,MATCH(fuentes!AH$1,fuentes!$AB$12:$AQ$12,0),0) ->  | Z21: =VLOOKUP(fuentes!$X16,fuentes!$AB$13:$AQ$28,MATCH(fuentes!AI$1,fuentes!$AB$12:$AQ$12,0),0) ->  | AA21: =VLOOKUP(fuentes!$X16,fuentes!$AB$13:$AQ$28,MATCH(fuentes!AJ$1,fuentes!$AB$12:$AQ$12,0),0) ->  | AB21: =VLOOKUP(fuentes!$X16,fuentes!$AB$13:$AQ$28,MATCH(fuentes!AK$1,fuentes!$AB$12:$AQ$12,0),0) ->  | AC21: =VLOOKUP(fuentes!$X16,fuentes!$AB$13:$AQ$28,MATCH(fuentes!AL$1,fuentes!$AB$12:$AQ$12,0),0) ->  | AD21: =VLOOKUP(fuentes!$X16,fuentes!$AB$13:$AQ$28,MATCH(fuentes!AM$1,fuentes!$AB$12:$AQ$12,0),0) ->  | AE21: =VLOOKUP(fuentes!$X16,fuentes!$AB$13:$AQ$28,MATCH(fuentes!AN$1,fuentes!$AB$12:$AQ$12,0),0) ->  | AF21: =VLOOKUP(fuentes!$X16,fuentes!$AB$13:$AQ$28,MATCH(fuentes!AO$1,fuentes!$AB$12:$AQ$12,0),0) ->  | AG21: =VLOOKUP(fuentes!$X16,fuentes!$AB$13:$AQ$28,MATCH(fuentes!AP$1,fuentes!$AB$12:$AQ$12,0),0) ->  | AH21: =SUM(V21:AG21) -> 
B22: 4 | C22: =VLOOKUP($B22,fuentes!$G$71:$P$161,2,0) -> MERC: 32-COM_B | D22: =IFERROR((VLOOKUP($B22,fuentes!$G$71:$P$161,3,0))," ") -> 14043.32 | E22: =VLOOKUP($B22,fuentes!$G$71:$P$161,4,0) -> 13778.86 | F22: =VLOOKUP($B22,fuentes!$G$71:$P$161,5,0) -> 13943.99 | G22: =VLOOKUP($B22,fuentes!$G$71:$P$161,6,0) -> 27722.85 | H22: =IFERROR((VLOOKUP($B22,fuentes!$G$71:$P$161,7,0))," ") -> 1.011984301 | I22: 0.9811682708 | J22: 0.9811682708 | K22: =IF(fuentes!$B$14=1," ",SUMIF(#REF!,DASH!C22,#REF!)) ->  | N22: =VLOOKUP($B22,fuentes!$G$71:$P$161,8,0) -> 14040.84 | O22: =VLOOKUP($B22,fuentes!$G$71:$P$161,9,0) -> 14079.4 | P22: 1.002746274 | Q22: 1.002746274 | R22: =VLOOKUP($B22,fuentes!$G$71:$Q$161,11,0) -> 0 | S22: 0.5078626476 | U22: % CUM ($) | V22: =IFERROR((+V21/V20)," ") ->  | W22: =IFERROR((+W21/W20)," ") -> 
B23: 5 | C23: =VLOOKUP($B23,fuentes!$G$71:$P$161,2,0) -> MERC: 25-FAMOTIDINA | D23: =IFERROR((VLOOKUP($B23,fuentes!$G$71:$P$161,3,0))," ") -> 7034.07 | E23: =VLOOKUP($B23,fuentes!$G$71:$P$161,4,0) -> 6593.33 | F23: =VLOOKUP($B23,fuentes!$G$71:$P$161,5,0) -> 6667.44 | G23: =VLOOKUP($B23,fuentes!$G$71:$P$161,6,0) -> 13260.77 | H23: =IFERROR((VLOOKUP($B23,fuentes!$G$71:$P$161,7,0))," ") -> 1.011240147 | I23: 0.9373421078 | J23: 0.9373421078 | K23: =IF(fuentes!$B$14=1," ",SUMIF(#REF!,DASH!C23,#REF!)) ->  | N23: =VLOOKUP($B23,fuentes!$G$71:$P$161,8,0) -> 6985.54 | O23: =VLOOKUP($B23,fuentes!$G$71:$P$161,9,0) -> 6624.14 | P23: 0.9482645579 | Q23: 0.9482645579 | R23: =VLOOKUP($B23,fuentes!$G$71:$Q$161,11,0) -> 0 | S23: 0.499529062 | U23: ="Vta (U) "&fuentes!C5 -> Vta (U) 2015 | V23: =VLOOKUP(fuentes!$X18,fuentes!$AB$13:$AQ$28,MATCH(fuentes!AE$1,fuentes!$AB$12:$AQ$12,0),0) ->  | W23: =VLOOKUP(fuentes!$X18,fuentes!$AB$13:$AQ$28,MATCH(fuentes!AF$1,fuentes!$AB$12:$AQ$12,0),0) ->  | X23: =VLOOKUP(fuentes!$X18,fuentes!$AB$13:$AQ$28,MATCH(fuentes!AG$1,fuentes!$AB$12:$AQ$12,0),0) ->  | Y23: =VLOOKUP(fuentes!$X18,fuentes!$AB$13:$AQ$28,MATCH(fuentes!AH$1,fuentes!$AB$12:$AQ$12,0),0) ->  | Z23: =VLOOKUP(fuentes!$X18,fuentes!$AB$13:$AQ$28,MATCH(fuentes!AI$1,fuentes!$AB$12:$AQ$12,0),0) ->  | AA23: =VLOOKUP(fuentes!$X18,fuentes!$AB$13:$AQ$28,MATCH(fuentes!AJ$1,fuentes!$AB$12:$AQ$12,0),0) ->  | AB23: =VLOOKUP(fuentes!$X18,fuentes!$AB$13:$AQ$28,MATCH(fuentes!AK$1,fuentes!$AB$12:$AQ$12,0),0) ->  | AC23: =VLOOKUP(fuentes!$X18,fuentes!$AB$13:$AQ$28,MATCH(fuentes!AL$1,fuentes!$AB$12:$AQ$12,0),0) ->  | AD23: =VLOOKUP(fuentes!$X18,fuentes!$AB$13:$AQ$28,MATCH(fuentes!AM$1,fuentes!$AB$12:$AQ$12,0),0) ->  | AE23: =VLOOKUP(fuentes!$X18,fuentes!$AB$13:$AQ$28,MATCH(fuentes!AN$1,fuentes!$AB$12:$AQ$12,0),0) ->  | AF23: =VLOOKUP(fuentes!$X18,fuentes!$AB$13:$AQ$28,MATCH(fuentes!AO$1,fuentes!$AB$12:$AQ$12,0),0) ->  | AG23: =VLOOKUP(fuentes!$X18,fuentes!$AB$13:$AQ$28,MATCH(fuentes!AP$1,fuentes!$AB$12:$AQ$12,0),0) ->  | AH23: =SUM(V23:AG23) -> 
B24: 6 | C24: =IFERROR((VLOOKUP($B24,fuentes!$G$71:$P$161,2,0))," ") -> MERC: 36-CHLORMADINONE | D24: =IFERROR((VLOOKUP($B24,fuentes!$G$71:$P$161,3,0))," ") -> 6619.61 | E24: =VLOOKUP($B24,fuentes!$G$71:$P$161,4,0) -> 6554.59 | F24: =VLOOKUP($B24,fuentes!$G$71:$P$161,5,0) -> 6528.43 | G24: =VLOOKUP($B24,fuentes!$G$71:$P$161,6,0) -> 13083.02 | H24: =IFERROR((VLOOKUP($B24,fuentes!$G$71:$P$161,7,0))," ") -> 0.9960089037 | I24: 0.9901776691 | J24: 0.9901776691 | K24: =IF(fuentes!$B$14=1," ",SUMIF(#REF!,DASH!C24,#REF!)) ->  | N24: =VLOOKUP($B24,fuentes!$G$71:$P$161,8,0) -> 6661.73 | O24: =VLOOKUP($B24,fuentes!$G$71:$P$161,9,0) -> 6574.34 | P24: 0.986881786 | Q24: 0.986881786 | R24: =VLOOKUP($B24,fuentes!$G$71:$Q$161,11,0) -> 0 | S24: 0.5025093595 | U24: ="Plan( U) "&fuentes!C6 -> Plan( U) 2016 | V24: =VLOOKUP(fuentes!$X19,fuentes!$AB$13:$AQ$28,MATCH(fuentes!AE$1,fuentes!$AB$12:$AQ$12,0),0) ->  | W24: =VLOOKUP(fuentes!$X19,fuentes!$AB$13:$AQ$28,MATCH(fuentes!AF$1,fuentes!$AB$12:$AQ$12,0),0) ->  | X24: =VLOOKUP(fuentes!$X19,fuentes!$AB$13:$AQ$28,MATCH(fuentes!AG$1,fuentes!$AB$12:$AQ$12,0),0) ->  | Y24: =VLOOKUP(fuentes!$X19,fuentes!$AB$13:$AQ$28,MATCH(fuentes!AH$1,fuentes!$AB$12:$AQ$12,0),0) ->  | Z24: =VLOOKUP(fuentes!$X19,fuentes!$AB$13:$AQ$28,MATCH(fuentes!AI$1,fuentes!$AB$12:$AQ$12,0),0) ->  | AA24: =VLOOKUP(fuentes!$X19,fuentes!$AB$13:$AQ$28,MATCH(fuentes!AJ$1,fuentes!$AB$12:$AQ$12,0),0) ->  | AB24: =VLOOKUP(fuentes!$X19,fuentes!$AB$13:$AQ$28,MATCH(fuentes!AK$1,fuentes!$AB$12:$AQ$12,0),0) ->  | AC24: =VLOOKUP(fuentes!$X19,fuentes!$AB$13:$AQ$28,MATCH(fuentes!AL$1,fuentes!$AB$12:$AQ$12,0),0) ->  | AD24: =VLOOKUP(fuentes!$X19,fuentes!$AB$13:$AQ$28,MATCH(fuentes!AM$1,fuentes!$AB$12:$AQ$12,0),0) ->  | AE24: =VLOOKUP(fuentes!$X19,fuentes!$AB$13:$AQ$28,MATCH(fuentes!AN$1,fuentes!$AB$12:$AQ$12,0),0) ->  | AF24: =VLOOKUP(fuentes!$X19,fuentes!$AB$13:$AQ$28,MATCH(fuentes!AO$1,fuentes!$AB$12:$AQ$12,0),0) ->  | AG24: =VLOOKUP(fuentes!$X19,fuentes!$AB$13:$AQ$28,MATCH(fuentes!AP$1,fuentes!$AB$12:$AQ$12,0),0) ->  | AH24: =SUM(V24:AG24) -> 
B25: 7 | C25: =VLOOKUP($B25,fuentes!$G$71:$P$161,2,0) -> MERC: 40-EPROSAR | D25: =IFERROR((VLOOKUP($B25,fuentes!$G$71:$P$161,3,0))," ") -> 3267.75 | E25: =VLOOKUP($B25,fuentes!$G$71:$P$161,4,0) -> 3345.6 | F25: =VLOOKUP($B25,fuentes!$G$71:$P$161,5,0) -> 3232.06 | G25: =VLOOKUP($B25,fuentes!$G$71:$P$161,6,0) -> 6577.66 | H25: =IFERROR((VLOOKUP($B25,fuentes!$G$71:$P$161,7,0))," ") -> 0.9660628886 | I25: 1.023823732 | J25: 1.023823732 | K25: =IF(fuentes!$B$14=1," ",SUMIF(#REF!,DASH!C25,#REF!)) ->  | N25: =VLOOKUP($B25,fuentes!$G$71:$P$161,8,0) -> 3311.88 | O25: =VLOOKUP($B25,fuentes!$G$71:$P$161,9,0) -> 3320.44 | P25: 1.002584635 | Q25: 1.002584635 | R25: =VLOOKUP($B25,fuentes!$G$71:$Q$161,11,0) -> 0 | S25: 0.5048056604 | U25: ="Vta( U) "&fuentes!C6 -> Vta( U) 2016 | V25: =VLOOKUP(fuentes!$X20,fuentes!$AB$13:$AQ$28,MATCH(fuentes!AE$1,fuentes!$AB$12:$AQ$12,0),0) ->  | W25: =VLOOKUP(fuentes!$X20,fuentes!$AB$13:$AQ$28,MATCH(fuentes!AF$1,fuentes!$AB$12:$AQ$12,0),0) ->  | X25: =VLOOKUP(fuentes!$X20,fuentes!$AB$13:$AQ$28,MATCH(fuentes!AG$1,fuentes!$AB$12:$AQ$12,0),0) ->  | Y25: =VLOOKUP(fuentes!$X20,fuentes!$AB$13:$AQ$28,MATCH(fuentes!AH$1,fuentes!$AB$12:$AQ$12,0),0) ->  | Z25: =VLOOKUP(fuentes!$X20,fuentes!$AB$13:$AQ$28,MATCH(fuentes!AI$1,fuentes!$AB$12:$AQ$12,0),0) ->  | AA25: =VLOOKUP(fuentes!$X20,fuentes!$AB$13:$AQ$28,MATCH(fuentes!AJ$1,fuentes!$AB$12:$AQ$12,0),0) ->  | AB25: =VLOOKUP(fuentes!$X20,fuentes!$AB$13:$AQ$28,MATCH(fuentes!AK$1,fuentes!$AB$12:$AQ$12,0),0) ->  | AC25: =VLOOKUP(fuentes!$X20,fuentes!$AB$13:$AQ$28,MATCH(fuentes!AL$1,fuentes!$AB$12:$AQ$12,0),0) ->  | AD25: =VLOOKUP(fuentes!$X20,fuentes!$AB$13:$AQ$28,MATCH(fuentes!AM$1,fuentes!$AB$12:$AQ$12,0),0) ->  | AE25: =VLOOKUP(fuentes!$X20,fuentes!$AB$13:$AQ$28,MATCH(fuentes!AN$1,fuentes!$AB$12:$AQ$12,0),0) ->  | AF25: =VLOOKUP(fuentes!$X20,fuentes!$AB$13:$AQ$28,MATCH(fuentes!AO$1,fuentes!$AB$12:$AQ$12,0),0) ->  | AG25: =VLOOKUP(fuentes!$X20,fuentes!$AB$13:$AQ$28,MATCH(fuentes!AP$1,fuentes!$AB$12:$AQ$12,0),0) ->  | AH25: =SUM(V25:AG25) -> 
B26: 8 | C26: =VLOOKUP($B26,fuentes!$G$71:$P$161,2,0) -> MERC: 28-GLYCEROL | D26: =IFERROR((VLOOKUP($B26,fuentes!$G$71:$P$161,3,0))," ") -> 3206.65 | E26: =VLOOKUP($B26,fuentes!$G$71:$P$161,4,0) -> 3089.76 | F26: =VLOOKUP($B26,fuentes!$G$71:$P$161,5,0) -> 3152 | G26: =VLOOKUP($B26,fuentes!$G$71:$P$161,6,0) -> 6241.76 | H26: =IFERROR((VLOOKUP($B26,fuentes!$G$71:$P$161,7,0))," ") -> 1.020143959 | I26: 0.9635476276 | J26: 0.9635476276 | K26: =IF(fuentes!$B$14=1," ",SUMIF(#REF!,DASH!C26,#REF!)) ->  | N26: =VLOOKUP($B26,fuentes!$G$71:$P$161,8,0) -> 3141.73 | O26: =VLOOKUP($B26,fuentes!$G$71:$P$161,9,0) -> 3069.88 | P26: 0.9771304345 | Q26: 0.9771304345 | R26: =VLOOKUP($B26,fuentes!$G$71:$Q$161,11,0) -> 0 | S26: 0.4918292277 | U26: ="Tot Vta (U)"&fuentes!C6 -> Tot Vta (U)2016 | V26: =VLOOKUP(fuentes!$X21,fuentes!$AB$13:$AQ$28,MATCH(fuentes!AE$1,fuentes!$AB$12:$AQ$12,0),0) ->  | W26: =VLOOKUP(fuentes!$X21,fuentes!$AB$13:$AQ$28,MATCH(fuentes!AF$1,fuentes!$AB$12:$AQ$12,0),0) ->  | X26: =VLOOKUP(fuentes!$X21,fuentes!$AB$13:$AQ$28,MATCH(fuentes!AG$1,fuentes!$AB$12:$AQ$12,0),0) ->  | Y26: =VLOOKUP(fuentes!$X21,fuentes!$AB$13:$AQ$28,MATCH(fuentes!AH$1,fuentes!$AB$12:$AQ$12,0),0) ->  | Z26: =VLOOKUP(fuentes!$X21,fuentes!$AB$13:$AQ$28,MATCH(fuentes!AI$1,fuentes!$AB$12:$AQ$12,0),0) ->  | AA26: =VLOOKUP(fuentes!$X21,fuentes!$AB$13:$AQ$28,MATCH(fuentes!AJ$1,fuentes!$AB$12:$AQ$12,0),0) ->  | AB26: =VLOOKUP(fuentes!$X21,fuentes!$AB$13:$AQ$28,MATCH(fuentes!AK$1,fuentes!$AB$12:$AQ$12,0),0) ->  | AC26: =VLOOKUP(fuentes!$X21,fuentes!$AB$13:$AQ$28,MATCH(fuentes!AL$1,fuentes!$AB$12:$AQ$12,0),0) ->  | AD26: =VLOOKUP(fuentes!$X21,fuentes!$AB$13:$AQ$28,MATCH(fuentes!AM$1,fuentes!$AB$12:$AQ$12,0),0) ->  | AE26: =VLOOKUP(fuentes!$X21,fuentes!$AB$13:$AQ$28,MATCH(fuentes!AN$1,fuentes!$AB$12:$AQ$12,0),0) ->  | AF26: =VLOOKUP(fuentes!$X21,fuentes!$AB$13:$AQ$28,MATCH(fuentes!AO$1,fuentes!$AB$12:$AQ$12,0),0) ->  | AG26: =VLOOKUP(fuentes!$X21,fuentes!$AB$13:$AQ$28,MATCH(fuentes!AP$1,fuentes!$AB$12:$AQ$12,0),0) ->  | AH26: =SUM(V26:AG26) -> 
B27: 9 | C27: =VLOOKUP($B27,fuentes!$G$71:$P$161,2,0) -> MERC: 23-ACITRETIN | D27: =IFERROR((VLOOKUP($B27,fuentes!$G$71:$P$161,3,0))," ") -> 2894.47 | E27: =VLOOKUP($B27,fuentes!$G$71:$P$161,4,0) -> 2945.16 | F27: =VLOOKUP($B27,fuentes!$G$71:$P$161,5,0) -> 2939.56 | G27: =VLOOKUP($B27,fuentes!$G$71:$P$161,6,0) -> 5884.72 | H27: =IFERROR((VLOOKUP($B27,fuentes!$G$71:$P$161,7,0))," ") -> 0.9980985753 | I27: 1.017512705 | J27: 1.017512705 | K27: =IF(fuentes!$B$14=1," ",SUMIF(#REF!,DASH!C27,#REF!)) ->  | N27: =VLOOKUP($B27,fuentes!$G$71:$P$161,8,0) -> 2917.55 | O27: =VLOOKUP($B27,fuentes!$G$71:$P$161,9,0) -> 2916.54 | P27: 0.9996538191 | Q27: 0.9996538191 | R27: =VLOOKUP($B27,fuentes!$G$71:$Q$161,11,0) -> 0 | S27: =IFERROR((+O27/G27),0) -> 0.4956123656 | U27: % CUM (U) | V27: =IFERROR((+V25/V24)," ") ->  | W27: =IFERROR((+W25/W24)," ") ->  | Y27: =IFERROR((+Y25/Y24)," ") -> 
B28: 10 | C28: =VLOOKUP($B28,fuentes!$G$71:$P$161,2,0) -> MERC: 46-LINCOMICINA | D28: =IFERROR((VLOOKUP($B28,fuentes!$G$71:$P$161,3,0))," ") -> 2815 | E28: =VLOOKUP($B28,fuentes!$G$71:$P$161,4,0) -> 2815.86 | F28: =VLOOKUP($B28,fuentes!$G$71:$P$161,5,0) -> 2770.54 | G28: =VLOOKUP($B28,fuentes!$G$71:$P$161,6,0) -> 5586.4 | H28: =IFERROR((VLOOKUP($B28,fuentes!$G$71:$P$161,7,0))," ") -> 0.9839054498 | I28: 1.000305506 | J28: 1.000305506 | K28: =IF(fuentes!$B$14=1," ",SUMIF(#REF!,DASH!C28,#REF!)) ->  | N28: =VLOOKUP($B28,fuentes!$G$71:$P$161,8,0) -> 2873.31 | O28: =VLOOKUP($B28,fuentes!$G$71:$P$161,9,0) -> 2842.26 | P28: 0.9891936477 | Q28: 0.9891936477 | R28: =VLOOKUP($B28,fuentes!$G$71:$Q$161,11,0) -> 0 | S28: 0.5087820421 | U28: % BON (U) | V28: =VLOOKUP(fuentes!$X23,fuentes!$AB$13:$AQ$28,MATCH(fuentes!AE$1,fuentes!$AB$12:$AQ$12,0),0) ->  | W28: =VLOOKUP(fuentes!$X23,fuentes!$AB$13:$AQ$28,MATCH(fuentes!AF$1,fuentes!$AB$12:$AQ$12,0),0) ->  | X28: =VLOOKUP(fuentes!$X23,fuentes!$AB$13:$AQ$28,MATCH(fuentes!AG$1,fuentes!$AB$12:$AQ$12,0),0) ->  | Y28: =VLOOKUP(fuentes!$X23,fuentes!$AB$13:$AQ$28,MATCH(fuentes!AH$1,fuentes!$AB$12:$AQ$12,0),0) ->  | Z28: =VLOOKUP(fuentes!$X23,fuentes!$AB$13:$AQ$28,MATCH(fuentes!AI$1,fuentes!$AB$12:$AQ$12,0),0) ->  | AA28: =VLOOKUP(fuentes!$X23,fuentes!$AB$13:$AQ$28,MATCH(fuentes!AJ$1,fuentes!$AB$12:$AQ$12,0),0) ->  | AB28: =VLOOKUP(fuentes!$X23,fuentes!$AB$13:$AQ$28,MATCH(fuentes!AK$1,fuentes!$AB$12:$AQ$12,0),0) ->  | AC28: =VLOOKUP(fuentes!$X23,fuentes!$AB$13:$AQ$28,MATCH(fuentes!AL$1,fuentes!$AB$12:$AQ$12,0),0) ->  | AD28: =VLOOKUP(fuentes!$X23,fuentes!$AB$13:$AQ$28,MATCH(fuentes!AM$1,fuentes!$AB$12:$AQ$12,0),0) ->  | AE28: =VLOOKUP(fuentes!$X23,fuentes!$AB$13:$AQ$28,MATCH(fuentes!AN$1,fuentes!$AB$12:$AQ$12,0),0) ->  | AF28: =VLOOKUP(fuentes!$X23,fuentes!$AB$13:$AQ$28,MATCH(fuentes!AO$1,fuentes!$AB$12:$AQ$12,0),0) ->  | AG28: =VLOOKUP(fuentes!$X23,fuentes!$AB$13:$AQ$28,MATCH(fuentes!AP$1,fuentes!$AB$12:$AQ$12,0),0) ->  | AH28: =VLOOKUP(fuentes!$X23,fuentes!$AB$13:$AQ$28,MATCH(fuentes!AQ$1,fuentes!$AB$12:$AQ$12,0),0) -> 
B29: 11 | C29: =VLOOKUP($B29,fuentes!$G$71:$P$161,2,0) -> MERC: 1069-ERITROPOYETINA | D29: =IFERROR((VLOOKUP($B29,fuentes!$G$71:$P$161,3,0))," ") -> 2121.39 | E29: =VLOOKUP($B29,fuentes!$G$71:$P$161,4,0) -> 2057.52 | F29: =VLOOKUP($B29,fuentes!$G$71:$P$161,5,0) -> 2084.84 | G29: =VLOOKUP($B29,fuentes!$G$71:$P$161,6,0) -> 4142.36 | H29: =IFERROR((VLOOKUP($B29,fuentes!$G$71:$P$161,7,0))," ") -> 1.013278121 | I29: 0.9698923819 | J29: 0.9698923819 | K29: =IF(fuentes!$B$14=1," ",SUMIF(#REF!,DASH!C29,#REF!)) ->  | N29: =VLOOKUP($B29,fuentes!$G$71:$P$161,8,0) -> 2095.14 | O29: =VLOOKUP($B29,fuentes!$G$71:$P$161,9,0) -> 2121.72 | P29: =IFERROR((+O29/N29),0) -> 1.012686503 | Q29: 1.012686503 | R29: =VLOOKUP($B29,fuentes!$G$71:$Q$161,11,0) -> 0 | S29: =IFERROR((+O29/G29),0) -> 0.5122007744 | U29: P.P PLAN | V29: =IFERROR((+V20/V24),0) -> 0 | W29: =IFERROR((+W20/W24),0) -> 0 | X29: 0 | Y29: 0 | Z29: 0 | AA29: 0 | AB29: 0 | AC29: 0 | AD29: 0 | AE29: 0 | AF29: 0 | AG29: 0 | AH29: 0
B30: 12 | C30: =VLOOKUP($B30,fuentes!$G$71:$P$161,2,0) -> MERC: 33-LOSARTAN | D30: =IFERROR((VLOOKUP($B30,fuentes!$G$71:$P$161,3,0))," ") -> 2108.93 | E30: =VLOOKUP($B30,fuentes!$G$71:$P$161,4,0) -> 2131.55 | F30: =VLOOKUP($B30,fuentes!$G$71:$P$161,5,0) -> 2068.03 | G30: =VLOOKUP($B30,fuentes!$G$71:$P$161,6,0) -> 4199.58 | H30: =IFERROR((VLOOKUP($B30,fuentes!$G$71:$P$161,7,0))," ") -> 0.9702000891 | I30: 1.010725818 | J30: 1.010725818 | K30: =IF(fuentes!$B$14=1," ",SUMIF(#REF!,DASH!C30,#REF!)) ->  | N30: =VLOOKUP($B30,fuentes!$G$71:$P$161,8,0) -> 2071.06 | O30: =VLOOKUP($B30,fuentes!$G$71:$P$161,9,0) -> 2072.82 | P30: 1.000849806 | Q30: 1.000849806 | R30: =VLOOKUP($B30,fuentes!$G$71:$Q$161,11,0) -> 0 | S30: 0.4935779292 | U30: P.P VTA | V30: =IFERROR((+V21/V26),0) -> 0 | W30: =IFERROR((+W21/W26),0) -> 0 | X30: 0 | Y30: 0 | Z30: 0 | AA30: 0 | AB30: 0 | AC30: 0 | AD30: 0 | AE30: 0 | AF30: 0 | AG30: 0 | AH30: 0
C31: Total general | D31: =+fuentes!I69 -> 82743.28 | E31: =+fuentes!J69 -> 81922.71 | F31: =+fuentes!K69 -> 81925.6 | G31: =+fuentes!L69 -> 163848.31 | H31: =IFERROR((+F31/E31),0) -> 1.000035277 | I31: =IFERROR((+E31/D31),0) -> 0.9900829409 | J31: 0.9900829409 | K31: =SUM(K19:K30) -> 0 | N31: =+fuentes!N69 -> 82794.18 | O31: =+fuentes!O69 -> 82383.1 | P31: =IFERROR((+O31/N31),0) -> 0.9950349167 | Q31: 0.9950349167 | R31: =+fuentes!Q69 -> 0 | S31: =IFERROR((+O31/G31),0) -> 0.5028010359
U33: ="Selección actual : "&fuentes!AD7&" - "&fuentes!AB67&"-"&fuentes!AA4 -> Selección actual : (Varios elementos) - MERC: 18-GLYCEROL-
C34: ITEMS | D34: PLAN (U) | E34: VTA (U) | F34: VTA (U) BONIF. | G34: TOT VTA (U) | H34: %BONI. (U) | I34: %CUM (U) | K34: FCST (U) | L34: FCST (U) cump | N34: PLAN ($) | O34: VTA ($) | P34: %CUM ($) | R34: NUR PLAN | S34: NUR VTA | U34: CLIENTES | V34: PLAN (U) | W34: VTA (U) | X34: VTA (U) BONIF. | Y34: TOT VTA (U) | Z34: %BONI. (U) | AA34: %CUM (U) | AC34: PLAN ($) | AD34: VTA ($) | AE34: %CUM ($) | AG34: NUR VTA
A35: =VLOOKUP($B35,fuentes!$Z$71:$AM$186,12,0) -> (ALL) | B35: 6 | C35: =VLOOKUP($B35,fuentes!$Z$71:$AM$186,11,0) -> CLOTRIMAZOL SOFT JABON LIQD 120 ML x 1 | D35: =VLOOKUP($B35,fuentes!$Z$71:$AM$186,3,0) -> 1652.89 | E35: =VLOOKUP($B35,fuentes!$Z$71:$AM$186,4,0) -> 1649.61 | F35: =VLOOKUP($B35,fuentes!$Z$71:$AM$186,5,0) -> 1646.76 | G35: =VLOOKUP($B35,fuentes!$Z$71:$AM$186,6,0) -> 3296.37 | H35: =VLOOKUP($B35,fuentes!$Z$71:$AM$186,7,0) -> 0.9982723189 | I35: =IF(C35=""," ",(IFERROR((+E35/D35),0))) -> 0.9980155969 | J35: =IF(C35=""," ",(IFERROR((+E35/D35),0))) -> 0.9980155969 | K35: =IF(C35=""," ",(IF(fuentes!$B$14=1," ",SUMIF(#REF!,DASH!A35,#REF!)))) ->  | L35: =IFERROR((+G35/K35)," ") ->  | M35: =IFERROR((+G35/K35)," ") ->  | N35: =VLOOKUP($B35,fuentes!$Z$71:$AM$186,8,0) -> 1680.94 | O35: =VLOOKUP($B35,fuentes!$Z$71:$AM$186,9,0) -> 1723.74 | P35: =IFERROR((+O35/N35),0) -> 1.025461944 | Q35: =IFERROR((+O35/N35),0) -> 1.025461944 | R35: =VLOOKUP($B35,fuentes!$Z$71:$AM$186,13,0) -> 0 | S35: =IFERROR((+O35/G35),0) -> 0.5229206673 | U35: DIFARE | V35: =IFERROR((VLOOKUP($U35,fuentes!$H$41:$N$49,2,0))," ") ->  | W35: =IFERROR((VLOOKUP($U35,fuentes!$H$41:$N$49,3,0))," ") ->  | X35: =IFERROR((VLOOKUP($U35,fuentes!$H$41:$N$49,4,0))," ") ->  | Y35: =IFERROR((VLOOKUP($U35,fuentes!$H$41:$N$49,5,0))," ") ->  | Z35: =IFERROR((VLOOKUP($U35,fuentes!$H$41:$N$49,6,0))," ") ->  | AA35: =IFERROR((+W35/V35),0) -> 0 | AB35: =IFERROR((+W35/V35),0) -> 0 | AC35: =IFERROR((VLOOKUP($U35,fuentes!$H$41:$N$49,7,0))," ") ->  | AD35: =IFERROR((VLOOKUP($U35,fuentes!$H$41:$Q$49,8,0))," ") ->  | AE35: =IFERROR((+AD35/AC35),0) -> 0 | AF35: =IFERROR((+AD35/AC35),0) -> 0 | AG35: =IFERROR((+AE35/Z35)," ") -> 
A36: =VLOOKUP($B36,fuentes!$Z$71:$AM$186,12,0) -> /25M | B36: =+B35+1 -> 7 | C36: =VLOOKUP($B36,fuentes!$Z$71:$AM$186,11,0) -> TRAMAD TABL 25 MG x 30 (/25M) | D36: =VLOOKUP($B36,fuentes!$Z$71:$AM$186,3,0) -> 1282.14 | E36: =VLOOKUP($B36,fuentes!$Z$71:$AM$186,4,0) -> 1330.16 | F36: =VLOOKUP($B36,fuentes!$Z$71:$AM$186,5,0) -> 1292.12 | G36: =VLOOKUP($B36,fuentes!$Z$71:$AM$186,6,0) -> 2622.28 | H36: =VLOOKUP($B36,fuentes!$Z$71:$AM$186,7,0) -> 0.9714019366 | I36: 1.037453008 | J36: 1.037453008 | K36: =IF(C36=""," ",(IF(fuentes!$B$14=1," ",SUMIF(#REF!,DASH!A36,#REF!)))) ->  | N36: =VLOOKUP($B36,fuentes!$Z$71:$AM$186,8,0) -> 1266.06 | O36: =VLOOKUP($B36,fuentes!$Z$71:$AM$186,9,0) -> 1333.22 | P36: 1.053046459 | Q36: 1.053046459 | R36: =VLOOKUP($B36,fuentes!$Z$71:$AM$186,13,0) -> 0 | S36: 0.5084201535 | U36: FARMAENLACE | V36: =IFERROR((VLOOKUP($U36,fuentes!$H$41:$N$49,2,0))," ") ->  | W36: =IFERROR((VLOOKUP($U36,fuentes!$H$41:$N$49,3,0))," ") ->  | X36: =IFERROR((VLOOKUP($U36,fuentes!$H$41:$N$49,4,0))," ") ->  | Y36: =IFERROR((VLOOKUP($U36,fuentes!$H$41:$N$49,5,0))," ") ->  | Z36: =IFERROR((VLOOKUP($U36,fuentes!$H$41:$N$49,6,0))," ") ->  | AA36: =IFERROR((+W36/V36),0) -> 0 | AB36: 0 | AC36: =IFERROR((VLOOKUP($U36,fuentes!$H$41:$N$49,7,0))," ") ->  | AD36: =IFERROR((VLOOKUP($U36,fuentes!$H$41:$Q$49,8,0))," ") ->  | AE36: =IFERROR((+AD36/AC36),0) -> 0 | AF36: =IFERROR((+AD36/AC36),0) -> 0
A37: =VLOOKUP($B37,fuentes!$Z$71:$AM$186,12,0) -> (ALL) | B37: 8 | C37: =VLOOKUP($B37,fuentes!$Z$71:$AM$186,11,0) -> GLYCEROL SP.F30.BRON 200 ML x 1 | D37: =VLOOKUP($B37,fuentes!$Z$71:$AM$186,3,0) -> 1430.86 | E37: =VLOOKUP($B37,fuentes!$Z$71:$AM$186,4,0) -> 1423.49 | F37: =VLOOKUP($B37,fuentes!$Z$71:$AM$186,5,0) -> 1434.5 | G37: =VLOOKUP($B37,fuentes!$Z$71:$AM$186,6,0) -> 2857.99 | H37: =VLOOKUP($B37,fuentes!$Z$71:$AM$186,7,0) -> 1.007734512 | I37: 0.9948492515 | J37: 0.9948492515 | K37: =IF(C37=""," ",(IF(fuentes!$B$14=1," ",SUMIF(#REF!,DASH!A37,#REF!)))) ->  | N37: =VLOOKUP($B37,fuentes!$Z$71:$AM$186,8,0) -> 1490.53 | O37: =VLOOKUP($B37,fuentes!$Z$71:$AM$186,9,0) -> 1434.88 | P37: 0.9626642872 | Q37: 0.9626642872 | R37: =VLOOKUP($B37,fuentes!$Z$71:$AM$186,13,0) -> 0 | S37: 0.5020591395 | U37: FYBECA | V37: =IFERROR((VLOOKUP($U37,fuentes!$H$41:$N$49,2,0))," ") ->  | W37: =IFERROR((VLOOKUP($U37,fuentes!$H$41:$N$49,3,0))," ") ->  | X37: =IFERROR((VLOOKUP($U37,fuentes!$H$41:$N$49,4,0))," ") ->  | Y37: =IFERROR((VLOOKUP($U37,fuentes!$H$41:$N$49,5,0))," ") ->  | Z37: =IFERROR((VLOOKUP($U37,fuentes!$H$41:$N$49,6,0))," ") ->  | AA37: 0 | AB37: 0 | AC37: =IFERROR((VLOOKUP($U37,fuentes!$H$41:$N$49,7,0))," ") ->  | AD37: =IFERROR((VLOOKUP($U37,fuentes!$H$41:$Q$49,8,0))," ") ->  | AE37: 0 | AF37: 0
A38: =VLOOKUP($B38,fuentes!$Z$71:$AM$186,12,0) -> (ALL) | B38: 9 | C38: =VLOOKUP($B38,fuentes!$Z$71:$AM$186,11,0) -> RIVASTIG A.IV LIOF 2 MG x 5 | D38: =VLOOKUP($B38,fuentes!$Z$71:$AM$186,3,0) -> 655.33 | E38: =VLOOKUP($B38,fuentes!$Z$71:$AM$186,4,0) -> 630.68 | F38: =VLOOKUP($B38,fuentes!$Z$71:$AM$186,5,0) -> 647.31 | G38: =VLOOKUP($B38,fuentes!$Z$71:$AM$186,6,0) -> 1277.99 | H38: =VLOOKUP($B38,fuentes!$Z$71:$AM$186,7,0) -> 1.026368364 | I38: 0.9623853631 | J38: 0.9623853631 | K38: =IF(C38=""," ",(IF(fuentes!$B$14=1," ",SUMIF(#REF!,DASH!A38,#REF!)))) ->  | N38: =VLOOKUP($B38,fuentes!$Z$71:$AM$186,8,0) -> 590.26 | O38: =VLOOKUP($B38,fuentes!$Z$71:$AM$186,9,0) -> 609.94 | P38: 1.033341239 | Q38: 1.033341239 | R38: =VLOOKUP($B38,fuentes!$Z$71:$AM$186,13,0) -> 0 | S38: 0.4772650803 | U38: SANA SANA | V38: =IFERROR((VLOOKUP($U38,fuentes!$H$41:$N$49,2,0))," ") ->  | W38: =IFERROR((VLOOKUP($U38,fuentes!$H$41:$N$49,3,0))," ") ->  | X38: =IFERROR((VLOOKUP($U38,fuentes!$H$41:$N$49,4,0))," ") ->  | Y38: =IFERROR((VLOOKUP($U38,fuentes!$H$41:$N$49,5,0))," ") ->  | Z38: =IFERROR((VLOOKUP($U38,fuentes!$H$41:$N$49,6,0))," ") ->  | AA38: 0 | AB38: 0 | AC38: =IFERROR((VLOOKUP($U38,fuentes!$H$41:$N$49,7,0))," ") ->  | AD38: =IFERROR((VLOOKUP($U38,fuentes!$H$41:$Q$49,8,0))," ") ->  | AE38: 0 | AF38: 0
A39: =VLOOKUP($B39,fuentes!$Z$71:$AM$186,12,0) -> (ALL) | B39: 10 | C39: =VLOOKUP($B39,fuentes!$Z$71:$AM$186,11,0) -> IBUPRO TABL 400 MG x 100 | D39: =VLOOKUP($B39,fuentes!$Z$71:$AM$186,3,0) -> 449.81 | E39: =VLOOKUP($B39,fuentes!$Z$71:$AM$186,4,0) -> 433.52 | F39: =VLOOKUP($B39,fuentes!$Z$71:$AM$186,5,0) -> 427.6 | G39: =VLOOKUP($B39,fuentes!$Z$71:$AM$186,6,0) -> 861.12 | H39: =VLOOKUP($B39,fuentes!$Z$71:$AM$186,7,0) -> 0.986344344 | I39: 0.9637847091 | J39: 0.9637847091 | K39: =IF(C39=""," ",(IF(fuentes!$B$14=1," ",SUMIF(#REF!,DASH!A39,#REF!)))) ->  | N39: =VLOOKUP($B39,fuentes!$Z$71:$AM$186,8,0) -> 447.54 | O39: =VLOOKUP($B39,fuentes!$Z$71:$AM$186,9,0) -> 426.72 | P39: 0.9534790186 | Q39: 0.9534790186 | R39: =VLOOKUP($B39,fuentes!$Z$71:$AM$186,13,0) -> 0 | S39: 0.4955406912 | U39: SUMELAB | V39: =IFERROR((VLOOKUP($U39,fuentes!$H$41:$N$49,2,0))," ") ->  | W39: =IFERROR((VLOOKUP($U39,fuentes!$H$41:$N$49,3,0))," ") ->  | X39: =IFERROR((VLOOKUP($U39,fuentes!$H$41:$N$49,4,0))," ") ->  | Y39: =IFERROR((VLOOKUP($U39,fuentes!$H$41:$N$49,5,0))," ") ->  | Z39: =IFERROR((VLOOKUP($U39,fuentes!$H$41:$N$49,6,0))," ") ->  | AA39: 0 | AB39: 0 | AC39: =IFERROR((VLOOKUP($U39,fuentes!$H$41:$N$49,7,0))," ") ->  | AD39: =IFERROR((VLOOKUP($U39,fuentes!$H$41:$Q$49,8,0))," ") ->  | AE39: 0 | AF39: 0
A40: =VLOOKUP($B40,fuentes!$Z$71:$AM$186,12,0) -> (ALL) | B40: 11 | C40: =VLOOKUP($B40,fuentes!$Z$71:$AM$186,11,0) -> INSULINE R A.SC 1000 IU 10 ML x 1 | D40: =VLOOKUP($B40,fuentes!$Z$71:$AM$186,3,0) -> 213.47 | E40: =VLOOKUP($B40,fuentes!$Z$71:$AM$186,4,0) -> 212.91 | F40: =VLOOKUP($B40,fuentes!$Z$71:$AM$186,5,0) -> 212.42 | G40: =VLOOKUP($B40,fuentes!$Z$71:$AM$186,6,0) -> 425.33 | H40: =VLOOKUP($B40,fuentes!$Z$71:$AM$186,7,0) -> 0.9976985581 | I40: 0.9973766806 | J40: 0.9973766806 | K40: =IF(C40=""," ",(IF(fuentes!$B$14=1," ",SUMIF(#REF!,DASH!A40,#REF!)))) ->  | N40: =VLOOKUP($B40,fuentes!$Z$71:$AM$186,8,0) -> 209.93 | O40: =VLOOKUP($B40,fuentes!$Z$71:$AM$186,9,0) -> 216.28 | P40: 1.030248178 | Q40: 1.030248178 | R40: =VLOOKUP($B40,fuentes!$Z$71:$AM$186,13,0) -> 0 | S40: 0.5084992829 | U40: LOJAFARM | V40: =IFERROR((VLOOKUP($U40,fuentes!$H$41:$N$49,2,0))," ") -> 59.74 | W40: =IFERROR((VLOOKUP($U40,fuentes!$H$41:$N$49,3,0))," ") -> 50.15 | X40: =IFERROR((VLOOKUP($U40,fuentes!$H$41:$N$49,4,0))," ") -> 51.52 | Y40: =IFERROR((VLOOKUP($U40,fuentes!$H$41:$N$49,5,0))," ") -> 101.67 | Z40: =IFERROR((VLOOKUP($U40,fuentes!$H$41:$N$49,6,0))," ") -> 1.027318046 | AA40: 0.8394710412 | AB40: 0.8394710412 | AC40: =IFERROR((VLOOKUP($U40,fuentes!$H$41:$N$49,7,0))," ") -> 51.3 | AD40: =IFERROR((VLOOKUP($U40,fuentes!$H$41:$Q$49,8,0))," ") -> 57.41 | AE40: 1.119103314 | AF40: 1.119103314 | AG40: 1.089344549
A41: =VLOOKUP($B41,fuentes!$Z$71:$AM$186,12,0) -> /ML | B41: 12 | C41: =VLOOKUP($B41,fuentes!$Z$71:$AM$186,11,0) -> METFORMINA V.SC 100 IU 10 ML x 1 | D41: =VLOOKUP($B41,fuentes!$Z$71:$AM$186,3,0) -> 597.69 | E41: =VLOOKUP($B41,fuentes!$Z$71:$AM$186,4,0) -> 635.48 | F41: =VLOOKUP($B41,fuentes!$Z$71:$AM$186,5,0) -> 651.13 | G41: =VLOOKUP($B41,fuentes!$Z$71:$AM$186,6,0) -> 1286.61 | H41: =VLOOKUP($B41,fuentes!$Z$71:$AM$186,7,0) -> 1.024627054 | I41: 1.063226756 | J41: 1.063226756 | K41: =IF(C41=""," ",(IF(fuentes!$B$14=1," ",SUMIF(#REF!,DASH!A41,#REF!)))) ->  | N41: =VLOOKUP($B41,fuentes!$Z$71:$AM$186,8,0) -> 582.59 | O41: =VLOOKUP($B41,fuentes!$Z$71:$AM$186,9,0) -> 622.65 | P41: 1.068761908 | Q41: 1.068761908 | R41: =VLOOKUP($B41,fuentes!$Z$71:$AM$186,13,0) -> 0 | S41: 0.4839461842 | U41: RESTO_CLIENTES | V41: =IFERROR((VLOOKUP($U41,fuentes!$H$41:$N$49,2,0))," ") -> 20498.91 | W41: =IFERROR((VLOOKUP($U41,fuentes!$H$41:$N$49,3,0))," ") -> 20490.51 | X41: =IFERROR((VLOOKUP($U41,fuentes!$H$41:$N$49,4,0))," ") -> 20296.68 | Y41: =IFERROR((VLOOKUP($U41,fuentes!$H$41:$N$49,5,0))," ") -> 40787.19 | Z41: =IFERROR((VLOOKUP($U41,fuentes!$H$41:$N$49,6,0))," ") -> 0.990540499 | AA41: 0.9995902221 | AB41: 0.9995902221 | AC41: =IFERROR((VLOOKUP($U41,fuentes!$H$41:$N$49,7,0))," ") -> 20263.78 | AD41: =IFERROR((VLOOKUP($U41,fuentes!$H$41:$Q$49,8,0))," ") -> 20610.82 | AE41: 1.017126124 | AF41: 1.017126124 | AG41: 1.026839513
U42: TOTAL | V42: =SUM(V35:V41) -> 20558.65 | W42: =SUM(W35:W41) -> 20540.66 | X42: =SUM(X35:X41) -> 20348.2 | Y42: =SUM(Y35:Y41) -> 40888.86 | Z42: =+GETPIVOTDATA(" %Bonif.",fuentes!$H$40) -> 1.003537473 | AA42: =IFERROR((+W42/V42),0) -> 0.9991249425 | AB42: 0.9991249425 | AC42: =SUM(AC35:AC41) -> 20315.08 | AD42: =SUM(AD35:AD41) -> 20668.23 | AE42: =IFERROR((+AD42/AC42),0) -> 1.017383638 | AF42: 1.017383638 | AG42: 1.013797358

Sheet fuentes
A1: MANTENER FORMULAS | X1: SELECCIÓN SIN DISTRIB | Y1: =IF(Z1=0,"(ALL)",AB2&AB3&AB4) -> MERC: 18-GLYCEROL | Z1: =SUM(Z2:Z5) -> 3 | AE1: ENERO | AF1: FEBRERO | AG1: MARZO | AH1: ABRIL | AI1: MAYO | AJ1: JUNIO | AK1: JULIO | AL1: AGOSTO | AM1: SEPTIEMBRE | AN1: OCTUBRE | AO1: NOVIEMBRE | AP1: DICIEMBRE | AQ1: Total general
A2: DATOS PARA CAMBIAR ANUALMENTE | X2: LINEA | Y2: (ALL) | Z2: =IF(Y2="(ALL)",0,1) -> 0 | AB2: =IF(Z2<>0,Y2,"") -> 
X3: MARCA | Y3: MERC: 18-GLYCEROL | Z3: =IF(Y3="(ALL)",0,3) -> 3 | AB3: =IF(Z3<>0,Y3,"") -> MERC: 18-GLYCEROL
K4: TAB1 | X4: COD_ITEM | Y4: (ALL) | Z4: =IF(Y4="(ALL)",0,5) -> 0 | AB4: =IF(AA4<>" ",Y4,"") -> 
A5: DATOS PARA CAMBIO DE AÑO | B5: AÑO BASE | C5: 2015 | E5: %CUM | F5: =IF(B14=1,(IF(Y2="(ALL)",DASH!P16,(VLOOKUP(fuentes!Y2,DASH!$C$9:$S$16,14,0)))),(IF(Y2="(ALL)",DASH!I16,(VLOOKUP(fuentes!Y2,DASH!$C$9:$S$17,7,0))))) -> 0.9887478974 | X5: CLIENTE | Y5: (ALL) | Z5: 0 | AF5: TAB5
B6: AÑO ACTUAL | C6: 2016 | E6: NUR | F6: =IF(Y2="(ALL)",DASH!S16,(VLOOKUP(fuentes!Y2,DASH!$C$9:$S$16,17,0))) -> 0.4991894738 | H6: ANIO | I6: 2016 | X6: LIN+MAR | Y6: 4 | AC6: CLIENTE | AD6: (Todas)
H7: MES | I7: abril | X7: LIN+MAR+ITE | Y7: 9 | Z7: I271 I500 | AC7: LINEA | AD7: (Varios elementos)
H8: CLIENTE | I8: (Todas) | X8: LIN+ITEM | Y8: 6 | Z8: H271 H500 | AC8: PRODUCTO | AD8: MERC: 18-GLYCEROL
X9: MAR+ITEM | Y9: 8 | Z9: G271 G500 | AC9: COD_ITEM | AD9: (Todas) | AF9: =IF(AD9<>"(Todas)",(MID(AD9,(FIND("(",AD9)+1),(LEN(AD9))-(FIND("(",AD9)+1))),"(ALL)") -> (ALL)
I10: Valores | X10: TODO | Y10: 0 | Z10: TOTAL
G11: 1 | H11: Rótulos de fila | I11: UNI PLAN | J11: UNI NET | K11: UNI BONIF. | L11: TOT UNI | M11: %Bonif. | N11: VALOR PLAN | O11: VENTA ($) | P11: P_PROM | Q11: =IFERROR((+N11/R11),0) -> 0 | R11: =SUMIF($K$289:$K$427,H11,$F$289:$F$427) -> 0 | X11: SOLO LINEA | Y11: 1 | Z11: K271 K500 | AE11: MES
G12: =+G11+1 -> 2 | H12: GENERAL | I12: 60317.38 | J12: 60079.62 | K12: 60027.39 | L12: 120107.01 | M12: 0.9991306536 | N12: 60376.26 | O12: 60578.49 | P12: 0.5043709772 | Q12: =IFERROR((+N12/R12),0) -> 0 | R12: 0 | AC12: ANIO | AD12: Valores | AE12: enero | AF12: febrero | AG12: marzo | AH12: abril | AI12: mayo | AJ12: junio | AK12: julio | AL12: agosto | AM12: septiembre | AN12: Octubre | AO12: Noviembre | AP12: diciembre | AQ12: Total general | AT12: ENE | AU12: FEB | AV12: MAR | AW12: ABR | AX12: MAY | AY12: JUN | AZ12: JUL | BA12: AGO | BB12: SEP | BC12: OCT | BD12: NOV | BE12: DIC | BF12: TOTAL
G13: =+G12+1 -> 3 | H13: SNC | I13: 51903.7 | J13: 51695.51 | K13: 51834.29 | L13: 103529.8 | M13: 1.002684566 | N13: 52145.9 | O13: 51317.46 | P13: 0.4956781526 | Q13: 0 | R13: 0 | X13: NO BORRAR | AB13: =+AC13&AD13 -> 2015 VALOR_PLAN | AC13: 2015 | AD13: VALOR_PLAN | AE13: 1.31 | AF13: 1.15 | AG13: 1.11 | AH13: 619.18 | AI13: 1.12 | AJ13: 642.98 | AK13: 624.46 | AL13: 610.4 | AM13: 1073.51 | AN13: 1013.3 | AO13: 814.8 | AP13: 695.41 | AQ13: 6098.73
B14: 1 | E14: 1 | G14: 4 | H14: CARDIOLOGICA | I14: 37070.97 | J14: 36668.4 | K14: 36609.32 | L14: 73277.72 | M14: 0.9983888034 | N14: 37124.57 | O14: 36579.44 | P14: 0.4991891123 | Q14: 0 | R14: 0 | X14: =fuentes!C5&" VALOR_VENTA_NETO" -> 2015 VALOR_VENTA_NETO | AB14: =+AC14&AD14 -> VALOR_VENTA_NETO | AD14: VALOR_VENTA_NETO | AE14: 1.48 | AF14: 1.01 | AG14: 3.89 | AH14: 666.5 | AI14: 2.53 | AJ14: 692.94 | AK14: 665.5 | AL14: 648.33 | AM14: 1027.94 | AN14: 600.79 | AO14: 788.73 | AP14: 679.96 | AQ14: 5779.6
A15: 1 | B15: USD$ /.000 | E15: 1 | F15: ABSOLUTOS | G15: 5 | H15: RESPIRATORIA | I15: 15992.44 | J15: 15404.67 | K15: 15404.26 | L15: 30808.93 | M15: 0.9999733847 | N15: 15916.64 | O15: 15334.72 | P15: 0.4977362083 | Q15: 0 | R15: 0 | X15: =fuentes!C6&" VALOR_PLAN" -> 2016 VALOR_PLAN | AB15: =+AC15&AD15 -> UNIDADES_PLAN | AD15: UNIDADES_PLAN | AE15: 5.55 | AF15: 8.46 | AG15: 1.38 | AH15: 709.81 | AI15: 1.97 | AJ15: 666.93 | AK15: 648.39 | AL15: 611.61 | AM15: 1057.89 | AN15: 1048.31 | AO15: 824.38 | AP15: 691.37 | AQ15: 6276.05 | AS15: =IF(B14=1,+DASH!U19,DASH!$U$23) -> Vta ($) 2015 | AT15: =IF($B$14=1,+DASH!V19/1000,DASH!V23) ->  | AU15: =IF($B$14=1,+DASH!W19/1000,DASH!W23) ->  | AV15: =IF($B$14=1,+DASH!X19/1000,DASH!X23) ->  | AW15: =IF($B$14=1,+DASH!Y19/1000,DASH!Y23) ->  | AX15: =IF($B$14=1,+DASH!Z19/1000,DASH!Z23) ->  | AY15: =IF($B$14=1,+DASH!AA19/1000,DASH!AA23) ->  | AZ15: =IF($B$14=1,+DASH!AB19/1000,DASH!AB23) ->  | BA15: =IF($B$14=1,+DASH!AC19/1000,DASH!AC23) ->  | BB15: =IF($B$14=1,+DASH!AD19/1000,DASH!AD23) ->  | BC15: =IF($B$14=1,+DASH!AE19/1000,DASH!AE23) ->  | BD15: =IF($B$14=1,+DASH!AF19/1000,DASH!AF23) ->  | BE15: =IF($B$14=1,+DASH!AG19/1000,DASH!AG23) ->  | BF15: =SUM(AT15:BE15) -> 
A16: 2 | B16: Unidades | E16: 2 | F16: PORCENTAJES | G16: 6 | H16: METABOLICOS | I16: 11913.54 | J16: 11981.19 | K16: 11746.36 | L16: 23727.55 | M16: 0.9804001105 | N16: 11970.12 | O16: 11737.22 | P16: 0.4946663267 | Q16: 0 | R16: 0 | X16: =fuentes!C6&" VALOR_VENTA_NETO" -> 2016 VALOR_VENTA_NETO | AB16: UNI_NET_PACK | AD16: UNI_NET_PACK | AE16: 2.34 | AF16: 1.13 | AG16: 1.31 | AH16: 645.71 | AI16: 3.88 | AJ16: 608.48 | AK16: 617.22 | AL16: 609.99 | AM16: 979.62 | AN16: 1165.68 | AO16: 805.74 | AP16: 699.36 | AQ16: 6140.46
G17: 7 | H17: OFTALMOLOGICA | I17: 6433.46 | J17: 6438.42 | K17: 6493.95 | L17: 12932.37 | M17: 1.008624787 | N17: 6501.28 | O17: 6469.89 | P17: 0.5002864904 | Q17: 0 | R17: 0 | AB17: TOT_UNI_PACK | AD17: TOT_UNI_PACK | AE17: 3.76 | AF17: 2.57 | AG17: 3.26 | AH17: 1358.3 | AI17: 4.94 | AJ17: 1290.76 | AK17: 1277.05 | AL17: 1242.25 | AM17: 1981.27 | AN17: 1751.11 | AO17: 1629.25 | AP17: 1400.55 | AQ17: 11945.07
G18: 8 | H18: GINECOLOCICA | I18: 4720.65 | J18: 4686.1 | K18: 4749.4 | L18: 9435.5 | M18: 1.013508034 | N18: 4695.29 | O18: 4589.23 | P18: 0.4863791002 | Q18: 0 | R18: 0 | X18: =fuentes!C5&" UNI_NET_PACK" -> 2015 UNI_NET_PACK | AB18: UNI_BON_PACK | AD18: UNI_BON_PACK | AE18: 1.42 | AF18: 1.44 | AG18: 1.95 | AH18: 712.59 | AI18: 1.06 | AJ18: 682.28 | AK18: 659.83 | AL18: 632.26 | AM18: 1001.65 | AN18: 585.43 | AO18: 823.51 | AP18: 701.19 | AQ18: 5804.61
E19: ORIGEN | F19: 1 | G19: 9 | H19: Total general | I19: 188352.14 | J19: 186953.91 | K19: 186864.97 | L19: 373818.88 | M19: 0.9995242678 | N19: 188730.06 | O19: 186606.45 | P19: 0.4991894738 | Q19: 0 | R19: =SUM(R11:R18) -> 0 | X19: =fuentes!C6&" UNIDADES_PLAN" -> 2016 UNIDADES_PLAN | AB19: %Bonif. | AD19: %Bonif. | AE19: 0.6068376068 | AF19: 1.274336283 | AG19: 1.488549618 | AH19: 1.103575909 | AI19: 0.2731958763 | AJ19: 1.121285827 | AK19: 1.069035352 | AL19: 1.036508795 | AM19: 1.022488312 | AN19: 0.5022218791 | AO19: 1.022054261 | AP19: 1.002616678 | AQ19: 0.9453054006 | AS19: =IF(B14=1,+DASH!U20,DASH!$U$24) -> Plan ($) 2016 | AT19: =IF($B$14=1,+DASH!V20/1000,DASH!V24) -> 0.00211 | AU19: =IF($B$14=1,+DASH!W20/1000,DASH!W24) -> 0.00164 | AV19: =IF($B$14=1,+DASH!X20/1000,DASH!X24) -> 0.00145 | AW19: =IF($B$14=1,+DASH!Y20/1000,DASH!Y24) -> 0.59026 | AX19: =IF($B$14=1,+DASH!Z20/1000,DASH!Z24) -> 1.0402 | AY19: =IF($B$14=1,+DASH!AA20/1000,DASH!AA24) -> 0.60989 | AZ19: =IF($B$14=1,+DASH!AB20/1000,DASH!AB24) -> 0.61397 | BA19: =IF($B$14=1,+DASH!AC20/1000,DASH!AC24) -> 0.88338 | BB19: =IF($B$14=1,+DASH!AD20/1000,DASH!AD24) -> 0.80755 | BC19: =IF($B$14=1,+DASH!AE20/1000,DASH!AE24) -> 0.69214 | BD19: =IF($B$14=1,+DASH!AF20/1000,DASH!AF24) -> 0.688 | BE19: =IF($B$14=1,+DASH!AG20/1000,DASH!AG24) -> 0.64351 | BF19: =SUM(AT19:BE19) -> 6.5741
E20: GRAFICO | F20: 1 | X20: =fuentes!C6&" UNI_NET_PACK" -> 2016 UNI_NET_PACK | AB20: 2016 VALOR_PLAN | AC20: 2016 | AD20: VALOR_PLAN | AE20: 2.11 | AF20: 1.64 | AG20: 1.45 | AH20: 590.26 | AI20: 1040.2 | AJ20: 609.89 | AK20: 613.97 | AL20: 883.38 | AM20: 807.55 | AN20: 692.14 | AO20: 688 | AP20: 643.51 | AQ20: 6574.1 | AS20: =IF(B14=1,+DASH!U21,DASH!U25) -> Vta ($) 2016 | AT20: =IF($B$14=1,+DASH!V21/1000,DASH!V25) ->  | AU20: =IF($B$14=1,+DASH!W21/1000,DASH!W25) ->  | AV20: =IF($B$14=1,+DASH!X21/1000,DASH!X25) ->  | AW20: =IF($B$14=1,+DASH!Y21/1000,DASH!Y25) ->  | AX20: =IF($B$14=1,+DASH!Z21/1000,DASH!Z25) ->  | AY20: =IF($B$14=1,+DASH!AA21/1000,DASH!AA25) ->  | AZ20: =IF($B$14=1,+DASH!AB21/1000,DASH!AB25) ->  | BA20: =IF($B$14=1,+DASH!AC21/1000,DASH!AC25) ->  | BB20: =IF($B$14=1,+DASH!AD21/1000,DASH!AD25) ->  | BC20: =IF($B$14=1,+DASH!AE21/1000,DASH!AE25) ->  | BD20: =IF($B$14=1,+DASH!AF21/1000,DASH!AF25) ->  | BE20: =IF($B$14=1,+DASH!AG21/1000,DASH!AG25) ->  | BF20: =SUM(AT20:BE20) -> 
E21: DASH | F21: 2 | X21: =fuentes!C6&" TOT_UNI_PACK" -> 2016 TOT_UNI_PACK | AB21: VALOR_VENTA_NETO | AD21: VALOR_VENTA_NETO | AE21: 1.22 | AF21: 1.3 | AG21: 3.73 | AH21: 609.94 | AI21: 572.91 | AJ21: 624.62 | AK21: 596 | AL21: 623.06 | AM21: 825.86 | AN21: 695.76 | AO21: 680.28 | AP21: 645.18 | AQ21: 5879.86
J22: TOTAL | AB22: UNIDADES_PLAN | AD22: UNIDADES_PLAN | AE22: 1.94 | AF22: 2.86 | AG22: 1.95 | AH22: 655.33 | AI22: 1021.47 | AJ22: 621.53 | AK22: 621.84 | AL22: 906.07 | AM22: 781.9 | AN22: 673.29 | AO22: 683.02 | AP22: 640.04 | AQ22: 6611.24
X23: =fuentes!C6&" %Bonif." -> 2016 %Bonif. | AB23: =+AC23&AD23 -> UNI_NET_PACK | AD23: UNI_NET_PACK | AE23: 2.58 | AF23: 2.01 | AG23: 1.91 | AH23: 630.68 | AI23: 1188.06 | AJ23: 581.77 | AK23: 614.89 | AL23: 911.07 | AM23: 778.67 | AN23: 674.71 | AO23: 698.33 | AP23: 634.44 | AQ23: 6719.12 | AS23: %CUM | AT23: =+AT20/AT19 ->  | AU23: =+AU20/AU19 -> 
X24: =fuentes!C6&" FCST" -> 2016 FCST | AB24: TOT_UNI_PACK | AD24: TOT_UNI_PACK | AE24: 4.38 | AF24: 3.55 | AG24: 3.11 | AH24: 1277.99 | AI24: 1781.23 | AJ24: 1185 | AK24: 1226.65 | AL24: 1514.62 | AM24: 1596.42 | AN24: 1354.33 | AO24: 1410.49 | AP24: 1248.83 | AQ24: 12606.6
W25: CON SELEC TODOS | X25: (ALL) | AB25: UNI_BON_PACK | AD25: UNI_BON_PACK | AE25: 1.8 | AF25: 1.54 | AG25: 1.2 | AH25: 647.31 | AI25: 593.17 | AJ25: 603.23 | AK25: 611.76 | AL25: 603.55 | AM25: 817.75 | AN25: 679.62 | AO25: 712.16 | AP25: 614.39 | AQ25: 5887.48
W26: MES ACTUAL | X26: =MONTH(TODAY()) -> 4 | AB26: %Bonif. | AD26: %Bonif. | AE26: 0.6976744186 | AF26: 0.7661691542 | AG26: 0.6282722513 | AH26: 1.026368364 | AI26: 0.4992761308 | AJ26: 1.03688743 | AK26: 0.9949096586 | AL26: 0.6624628184 | AM26: 1.050188141 | AN26: 1.007277201 | AO26: 1.01980439 | AP26: 0.9683973268 | AQ26: 0.8762278394
W27: CLIENTE | X27: =IF(Y5<>"(ALL)",0,1) -> 1
B30: 1 | C30: =IF(B30=1,"MENSUAL A "&C31,"ACUMULADA ENERO - "&C31) -> MENSUAL A ABRIL | K30: TAB2
B31: 4 | C31: =VLOOKUP(B31,$B$32:$C$43,2,0) -> ABRIL
A32: 1 | B32: 1 | C32: ENERO | D32: =IF($B$30=1,IF(B32=$B$31,1,0),IF(B32<=$B$31,1,0)) -> 0
A33: =+A32+1 -> 2 | B33: 2 | C33: FEBRERO | D33: =IF($B$30=1,IF(B33=$B$31,1,0),IF(B33<=$B$31,1,0)) -> 0
A34: =+A33+1 -> 3 | B34: 3 | C34: MARZO | D34: 0 | H34: ANIO | I34: 2016
A35: 4 | B35: 4 | C35: ABRIL | D35: 1 | H35: MES | I35: abril
A36: 5 | B36: 5 | C36: MAYO | D36: 0 | H36: LINEA | I36: (Todas)
A37: 6 | B37: 6 | C37: JUNIO | D37: 0 | H37: PRODUCTO | I37: MERC: 18-GLYCEROL
A38: 7 | B38: 7 | C38: JULIO | D38: 0 | H38: COD_ITEM | I38: (Todas)
A39: 8 | B39: 8 | C39: AGOSTO | D39: 0
A40: 9 | B40: 9 | C40: SEPTIEMBRE | D40: 0 | I40: Valores
A41: 10 | B41: 10 | C41: OCTUBRE | D41: 0 | G41: 1 | H41: Rótulos de fila | I41: UNIDADES PLAN | J41: UNI NET | K41: UNI BONIF. | L41: TOT UNI | M41: %Bonif. | N41: VALOR_PLAN | O41: VENTA ($) | P41: P_PROM
A42: 11 | B42: 11 | C42: NOVIEMBRE | D42: 0 | G42: 2 | H42: LOJAFARM | I42: 59.74 | J42: 50.15 | K42: 51.52 | L42: 101.67 | M42: 1.027318046 | N42: 51.3 | O42: 57.41 | P42: 0.5646700108
A43: 12 | B43: 12 | C43: DICIEMBRE | D43: 0 | G43: 3 | H43: RESTO_CLIENTES | I43: 20498.91 | J43: 20490.51 | K43: 20296.68 | L43: 40787.19 | M43: 0.990540499 | N43: 20263.78 | O43: 20610.82 | P43: 0.5053258143
G44: 4 | H44: DISTRIBUIDORA COSTA AZUL | I44: 1370.11 | J44: 1427.77 | K44: 1429.3 | L44: 2857.07 | M44: 1.001071601 | N44: 1421.1 | O44: 1451.81 | P44: 0.5081464577
B45: 8 | C45: =IF(B45=8,"(ALL)",VLOOKUP(B45,$B$46:$C$53,2,0)) -> (ALL) | G45: 5 | H45: DISTRIBUIDORA LA ECONOMICA | I45: 1007.74 | J45: 1041.15 | K45: 1054.33 | L45: 2095.48 | M45: 1.012659079 | N45: 984.3 | O45: 970.81 | P45: 0.4632876477
C46: Rótulos de fila | E46: tab6 | G46: 6 | H46: DISTRIBUIDORA ZONA SUR | I46: 12504.66 | J46: 12284.17 | K46: 12480.55 | L46: 24764.72 | M46: 1.015986428 | N46: 12618.66 | O46: 12355.72 | P46: 0.4989242761
B47: 1 | C47: (en blanco) | G47: 7 | H47: FARMACOS INDEPENDIENTES DE LATINOAMERICA | I47: 903.16 | J47: 873.93 | K47: 942.73 | L47: 1816.66 | M47: 1.078724841 | N47: 906.39 | O47: 919.03 | P47: 0.5058899299
B48: 2 | C48: LOJAFARM | G48: 8 | H48: SUPER DESPENSAS LA SALUD | I48: 669.12 | J48: 646.74 | K48: 689.54 | L48: 1336.28 | M48: 1.066178062 | N48: 645.07 | O48: 662.8 | P48: 0.4960038315
B49: 3 | C49: RESTO_CLIENTES | H49: Total general | I49: 37013.44 | J49: 36814.42 | K49: 36944.65 | L49: 73759.07 | M49: 1.003537473 | N49: 36890.6 | O49: 37028.4 | P49: 0.5020182603
B50: 4 | C50: DISTRIBUIDORA COSTA AZUL
B51: 5 | C51: DISTRIBUIDORA LA ECONOMICA
B52: 6 | C52: DISTRIBUIDORA ZONA SUR
B53: 7 | C53: FARMACOS INDEPENDIENTES DE LATINOAMERICA
B54: 8 | C54: SUPER DESPENSAS LA SALUD
AD63: TAB4
L64: TAB3 | AA64: ANIO | AB64: 2016
H65: ANIO | I65: 2016 | AA65: MES | AB65: abril
H66: MES | I66: abril | AA66: LINEA | AB66: (Varios elementos)
H67: LINEA | I67: (Varios elementos) | AA67: PRODUCTO | AB67: MERC: 18-GLYCEROL
H68: CLIENTE | I68: (Todas) | AA68: CLIENTE | AB68: (Todas)
H69: total general | I69: =SUM(I71:I250) -> 82743.28 | J69: =SUM(J71:J250) -> 81922.71 | K69: =SUM(K71:K250) -> 81925.6 | L69: =SUM(L71:L250) -> 163848.31 | M69: =IFERROR((+K69/J69)," ") -> 1.000035277 | N69: =SUM(N71:N250) -> 82794.18 | O69: =SUM(O71:O250) -> 82383.1 | Q69: =IFERROR((+N69/R69),0) -> 0 | R69: =SUM(R71:R250) -> 0 | AA69: total general | AB69: =SUM(AB71:AB326) -> 14606.68 | AC69: =SUM(AC71:AC326) -> 14536.54 | AD69: =SUM(AD71:AD326) -> 14529.92 | AE69: =SUM(AE71:AE326) -> 29066.46 | AF69: =+AD69/AC69 -> 0.9995445959 | AG69: =SUM(AG71:AG326) -> 14540.8 | AH69: =SUM(AH71:AH326) -> 14683.31
I70: Valores | AB70: Valores
G71: 1 | H71: Rótulos de fila | I71: UNI PLAN | J71: UNI NET | K71: UNI BONIF. | L71: TOT UNI | M71: %Bonif. | N71: VALOR_PLAN | O71: VENTA ($) | P71: P_PROM | Q71: =IFERROR((+N71/R71),0) -> 0 | R71: =SUMIF($M$289:$M$427,H71,$F$289:$F$427) -> 0 | Z71: 1 | AA71: Rótulos de fila | AB71: UNI PLAN | AC71: UNI NET | AD71: UNI BONIF. | AE71: TOT UNI | AF71: %Bonif. | AG71: VALOR_PLAN | AH71: VENTA ($) | AI71: P_PROM | AJ71: =+AA71 -> Rótulos de fila | AK71: =IFERROR((MID(AA71,(FIND("(",AA71)+1),(LEN(AA71))-(FIND("(",AA71)+1))),"(ALL)") -> (ALL) | AL71: =IFERROR((+AG71/AM71),0) -> 0 | AM71: =SUMIF($L$289:$L$427,AK71,$F$289:$F$427) -> 0
G72: =+G71+1 -> 2 | H72: MERC: 19-LINAGLIPTINA | I72: 18199.98 | J72: 18195.06 | K72: 18134.28 | L72: 36329.34 | M72: 0.9966595329 | N72: 18407.97 | O72: 18224.07 | P72: 0.5016350421 | Q72: =IFERROR((+N72/R72),0) -> 0 | R72: =SUMIF($M$289:$M$427,H72,$F$289:$F$427) -> 0 | Z72: 2 | AA72: ATORVAS CAPS x 28 | AB72: 2194.48 | AC72: 2181.46 | AD72: 2182.29 | AE72: 4363.75 | AF72: 1.000380479 | AG72: 2184.29 | AH72: 2161.28 | AI72: 0.4952804354 | AJ72: =IFERROR((LEFT(AA72,(FIND("(",AA72)-1))),"") ->  | AK72: =IFERROR((MID(AA72,(FIND("(",AA72)+1),(LEN(AA72))-(FIND("(",AA72)+1))),"(ALL)") -> (ALL) | AL72: =IFERROR((+AG72/AM72),0) -> 0 | AM72: =SUMIF($L$289:$L$427,AK72,$F$289:$F$427) -> 0
G73: 3 | H73: MERC: 18-GLYCEROL | I73: 14606.68 | J73: 14536.54 | K73: 14529.92 | L73: 29066.46 | M73: 0.9995445959 | N73: 14540.8 | O73: 14683.31 | P73: 0.5051633395 | Q73: 0 | R73: =SUMIF($M$289:$M$427,H73,$F$289:$F$427) -> 0 | Z73: 3 | AA73: GLYCYRRHIZA CAPS 20 MG x 10 (/135) | AB73: 2744.15 | AC73: 2792.87 | AD73: 2729.9 | AE73: 5522.77 | AF73: 0.9774533007 | AG73: 2712.64 | AH73: 2865.19 | AI73: 0.5187958217 | AJ73: =+AA73 -> GLYCYRRHIZA CAPS 20 MG x 10 (/135) | AK73: /135 | AL73: 0 | AM73: 0
G74: 4 | H74: MERC: 32-COM_B | I74: 14043.32 | J74: 13778.86 | K74: 13943.99 | L74: 27722.85 | M74: 1.011984301 | N74: 14040.84 | O74: 14079.4 | P74: 0.5078626476 | Q74: 0 | R74: 0 | Z74: 4 | AA74: GLYCEROL SENS. FACE EMULS.LIMPIA 200 ML x 1 | AB74: 2315.87 | AC74: 2253.57 | AD74: 2273.31 | AE74: 4526.88 | AF74: 1.008759435 | AG74: 2305.29 | AH74: 2272.24 | AI74: 0.5019439437 | AJ74: GLYCEROL SENS. FACE EMULS.LIMPIA 200 ML x 1 | AK74: (ALL) | AL74: 0 | AM74: 0
G75: 5 | H75: MERC: 25-FAMOTIDINA | I75: 7034.07 | J75: 6593.33 | K75: 6667.44 | L75: 13260.77 | M75: 1.011240147 | N75: 6985.54 | O75: 6624.14 | P75: 0.499529062 | Q75: 0 | R75: 0 | Z75: 5 | AA75: CRECE +D 200 G x 1 | AB75: 437.72 | AC75: 397.6 | AD75: 416.78 | AE75: 814.38 | AF75: 1.048239437 | AG75: 452.96 | AH75: 419.22 | AI75: 0.5147719738 | AJ75: CRECE +D 200 G x 1 | AK75: (ALL) | AL75: 0 | AM75: 0
G76: 6 | H76: MERC: 36-CHLORMADINONE | I76: 6619.61 | J76: 6554.59 | K76: 6528.43 | L76: 13083.02 | M76: 0.9960089037 | N76: 6661.73 | O76: 6574.34 | P76: 0.5025093595 | Q76: 0 | R76: 0 | Z76: 6 | AA76: CLOTRIMAZOL SOFT JABON LIQD 120 ML x 1 | AB76: 1652.89 | AC76: 1649.61 | AD76: 1646.76 | AE76: 3296.37 | AF76: 0.9982723189 | AG76: 1680.94 | AH76: 1723.74 | AI76: 0.5229206673 | AJ76: CLOTRIMAZOL SOFT JABON LIQD 120 ML x 1 | AK76: (ALL) | AL76: 0 | AM76: 0
G77: 7 | H77: MERC: 40-EPROSAR | I77: 3267.75 | J77: 3345.6 | K77: 3232.06 | L77: 6577.66 | M77: 0.9660628886 | N77: 3311.88 | O77: 3320.44 | P77: 0.5048056604 | Q77: 0 | R77: 0 | Z77: 7 | AA77: TRAMAD TABL 25 MG x 30 (/25M) | AB77: 1282.14 | AC77: 1330.16 | AD77: 1292.12 | AE77: 2622.28 | AF77: 0.9714019366 | AG77: 1266.06 | AH77: 1333.22 | AI77: 0.5084201535 | AJ77: TRAMAD TABL 25 MG x 30 (/25M) | AK77: /25M | AL77: 0 | AM77: 0
G78: 8 | H78: MERC: 28-GLYCEROL | I78: 3206.65 | J78: 3089.76 | K78: 3152 | L78: 6241.76 | M78: 1.020143959 | N78: 3141.73 | O78: 3069.88 | P78: 0.4918292277 | Q78: 0 | R78: 0 | Z78: 8 | AA78: GLYCEROL SP.F30.BRON 200 ML x 1 | AB78: 1430.86 | AC78: 1423.49 | AD78: 1434.5 | AE78: 2857.99 | AF78: 1.007734512 | AG78: 1490.53 | AH78: 1434.88 | AI78: 0.5020591395 | AJ78: GLYCEROL SP.F30.BRON 200 ML x 1 | AK78: (ALL) | AL78: 0 | AM78: 0
G79: 9 | H79: MERC: 23-ACITRETIN | I79: 2894.47 | J79: 2945.16 | K79: 2939.56 | L79: 5884.72 | M79: 0.9980985753 | N79: 2917.55 | O79: 2916.54 | P79: 0.4956123656 | Q79: 0 | R79: =SUMIF($M$289:$M$427,H79,$F$289:$F$427) -> 0 | Z79: 9 | AA79: RIVASTIG A.IV LIOF 2 MG x 5 | AB79: 655.33 | AC79: 630.68 | AD79: 647.31 | AE79: 1277.99 | AF79: 1.026368364 | AG79: 590.26 | AH79: 609.94 | AI79: 0.4772650803 | AJ79: RIVASTIG A.IV LIOF 2 MG x 5 | AK79: (ALL) | AL79: 0 | AM79: 0
G80: 10 | H80: MERC: 46-LINCOMICINA | I80: 2815 | J80: 2815.86 | K80: 2770.54 | L80: 5586.4 | M80: 0.9839054498 | N80: 2873.31 | O80: 2842.26 | P80: 0.5087820421 | Q80: 0 | R80: 0 | Z80: 10 | AA80: IBUPRO TABL 400 MG x 100 | AB80: 449.81 | AC80: 433.52 | AD80: 427.6 | AE80: 861.12 | AF80: 0.986344344 | AG80: 447.54 | AH80: 426.72 | AI80: 0.4955406912 | AJ80: IBUPRO TABL 400 MG x 100 | AK80: (ALL) | AL80: =IFERROR((+AG80/AM80),0) -> 0 | AM80: 0
G81: 11 | H81: MERC: 1069-ERITROPOYETINA | I81: 2121.39 | J81: 2057.52 | K81: 2084.84 | L81: 4142.36 | M81: 1.013278121 | N81: 2095.14 | O81: 2121.72 | P81: 0.5122007744 | Q81: 0 | R81: 0 | Z81: 11 | AA81: INSULINE R A.SC 1000 IU 10 ML x 1 | AB81: 213.47 | AC81: 212.91 | AD81: 212.42 | AE81: 425.33 | AF81: 0.9976985581 | AG81: 209.93 | AH81: 216.28 | AI81: 0.5084992829 | AJ81: INSULINE R A.SC 1000 IU 10 ML x 1 | AK81: (ALL) | AL81: 0 | AM81: 0
G82: 12 | H82: MERC: 33-LOSARTAN | I82: 2108.93 | J82: 2131.55 | K82: 2068.03 | L82: 4199.58 | M82: 0.9702000891 | N82: 2071.06 | O82: 2072.82 | P82: 0.4935779292 | Q82: 0 | R82: 0 | Z82: 12 | AA82: METFORMINA V.SC 100 IU 10 ML x 1 (/ML) | AB82: 597.69 | AC82: 635.48 | AD82: 651.13 | AE82: 1286.61 | AF82: 1.024627054 | AG82: 582.59 | AH82: 622.65 | AI82: 0.4839461842 | AJ82: =IFERROR((LEFT(AA82,(FIND("(",AA82)-1))),"") -> METFORMINA V.SC 100 IU 10 ML x 1 | AK82: /ML | AL82: 0 | AM82: 0
G83: 13 | H83: MERC: 1071-VILDAGLIPTIN | I83: 1681.02 | J83: 1689.1 | K83: 1712.91 | L83: 3402.01 | M83: 1.014096264 | N83: 1686.59 | O83: 1686.22 | P83: 0.4956540398 | Q83: 0 | R83: 0 | Z83: 13 | AA83: MICONAZOL OVULOS x 10 | AB83: 632.27 | AC83: 595.19 | AD83: 615.8 | AE83: 1210.99 | AF83: 1.034627598 | AG83: 617.77 | AH83: 597.95 | AI83: 0.4937695604 | AK83: (ALL) | AL83: 0 | AM83: 0
G84: 14 | H84: MERC: 49-ADAPALEN | I84: 1282.3 | J84: 1280.57 | K84: 1248.65 | L84: 2529.22 | M84: 0.9750736 | N84: 1255.93 | O84: 1230.56 | P84: 0.4865373514 | Q84: 0 | R84: 0 | Z84: 14 | AK84: (ALL) | AL84: 0 | AM84: 0
G85: 15 | H85: MERC: 47-LOSARTAN | I85: 1255.74 | J85: 1271.35 | K85: 1276.84 | L85: 2548.19 | M85: 1.004318244 | N85: 1203.46 | O85: 1328 | P85: 0.521154231 | Q85: 0 | R85: 0 | Z85: 15 | AK85: (ALL) | AL85: 0 | AM85: 0
G86: 16 | H86: MERC: 24-LOVASTATINA | I86: 839.31 | J86: 862.6 | K86: 866.92 | L86: 1729.52 | M86: 1.005008115 | N86: 819.58 | O86: 813.58 | P86: 0.4704079745 | Q86: 0 | R86: 0 | Z86: 16 | AK86: (ALL) | AL86: 0 | AM86: 0
G87: 17 | H87: COM_B | I87: 391.18 | J87: 376.68 | K87: 398.14 | L87: 774.82 | M87: 1.056971435 | N87: 399.67 | O87: 397.51 | P87: 0.5130352856 | Q87: 0 | R87: 0 | Z87: 17 | AK87: (ALL) | AL87: 0 | AM87: 0
G88: 18 | H88: MERC: 42-LOUTEN T | I88: 375.88 | J88: 398.58 | K88: 371.05 | L88: 769.63 | M88: 0.9309298008 | N88: 381.4 | O88: 398.31 | P88: 0.5175343996 | Q88: 0 | R88: 0 | Z88: 18 | AK88: (ALL) | AL88: 0 | AM88: 0
G89: 19 | Q89: 0 | R89: 0 | Z89: 19 | AK89: (ALL) | AL89: 0 | AM89: 0
G90: 20 | Q90: 0 | R90: 0 | Z90: 20 | AK90: (ALL) | AL90: 0 | AM90: 0
G91: 21 | Q91: 0 | R91: 0 | Z91: 21 | AK91: (ALL) | AL91: 0 | AM91: 0
G92: 22 | Q92: 0 | R92: 0 | Z92: 22 | AK92: (ALL) | AL92: 0 | AM92: 0
G93: 23 | Q93: 0 | R93: 0 | Z93: 23 | AK93: (ALL) | AL93: 0 | AM93: 0
G94: 24 | Q94: 0 | R94: 0 | Z94: 24 | AK94: (ALL) | AL94: 0 | AM94: 0
G95: 25 | Q95: 0 | R95: 0 | Z95: 25 | AK95: (ALL) | AL95: 0 | AM95: 0
G96: 26 | Q96: 0 | R96: 0 | Z96: 26 | AK96: (ALL) | AL96: 0 | AM96: 0
G97: 27 | Q97: 0 | R97: 0 | Z97: 27 | AK97: (ALL) | AL97: 0 | AM97: 0
G98: 28 | Q98: 0 | R98: 0 | Z98: 28 | AK98: (ALL) | AL98: 0 | AM98: 0
G99: 29 | Q99: 0 | R99: 0 | Z99: 29 | AK99: (ALL) | AL99: 0 | AM99: 0
G100: 30 | Q100: 0 | R100: 0 | Z100: 30 | AK100: (ALL) | AL100: 0 | AM100: 0
G101: 31 | Q101: 0 | R101: 0 | Z101: 31 | AK101: (ALL) | AL101: 0 | AM101: 0
G102: 32 | Q102: 0 | R102: 0 | Z102: 32 | AK102: (ALL) | AL102: 0 | AM102: 0
G103: 33 | Q103: 0 | R103: 0 | Z103: 33 | AK103: (ALL) | AL103: =IFERROR((+AG103/AM103),0) -> 0 | AM103: =SUMIF($L$289:$L$427,AK103,$F$289:$F$427) -> 0
G104: =+G103+1 -> 34 | Q104: 0 | R104: 0 | Z104: 34 | AK104: (ALL) | AL104: 0 | AM104: 0
G105: 35 | Q105: 0 | R105: 0 | Z105: 35 | AK105: (ALL) | AL105: 0 | AM105: 0
G106: 36 | Q106: 0 | R106: 0 | Z106: 36 | AK106: (ALL) | AL106: 0 | AM106: 0
G107: 37 | Q107: 0 | R107: 0 | Z107: 37 | AK107: (ALL) | AL107: 0 | AM107: 0
G108: 38 | Q108: 0 | R108: 0 | Z108: 38 | AK108: (ALL) | AL108: 0 | AM108: 0
G109: 39 | Q109: 0 | R109: 0 | Z109: 39 | AK109: (ALL) | AL109: 0 | AM109: 0
G110: 40 | Q110: 0 | R110: 0 | Z110: 40 | AK110: (ALL) | AL110: 0 | AM110: 0
G111: 41 | Q111: 0 | R111: 0 | Z111: 41 | AK111: (ALL) | AL111: 0 | AM111: 0
G112: 42 | Q112: 0 | R112: 0 | Z112: 42 | AK112: (ALL) | AL112: 0 | AM112: 0
G113: 43 | Q113: 0 | R113: 0 | Z113: 43 | AK113: (ALL) | AL113: 0 | AM113: 0
G114: 44 | Q114: 0 | R114: 0 | Z114: 44 | AK114: (ALL) | AL114: 0 | AM114: 0
G115: 45 | Q115: 0 | R115: 0 | Z115: 45 | AK115: (ALL) | AL115: 0 | AM115: 0
G116: 46 | Q116: 0 | R116: 0 | Z116: 46 | AK116: (ALL) | AL116: 0 | AM116: 0
G117: 47 | Q117: 0 | R117: 0 | Z117: 47 | AK117: (ALL) | AL117: 0 | AM117: 0
G118: 48 | Q118: 0 | R118: 0 | Z118: 48 | AK118: (ALL) | AL118: 0 | AM118: 0
G119: 49 | Q119: 0 | R119: 0 | Z119: 49 | AK119: (ALL) | AL119: 0 | AM119: 0
G120: 50 | Q120: 0 | R120: 0 | Z120: 50 | AK120: (ALL) | AL120: 0 | AM120: 0
G121: 51 | Q121: 0 | R121: 0 | Z121: 51 | AK121: (ALL) | AL121: 0 | AM121: 0
G122: 52 | Q122: 0 | R122: 0 | Z122: 52 | AK122: (ALL) | AL122: 0 | AM122: 0
G123: 53 | Q123: 0 | R123: 0 | Z123: 53 | AK123: (ALL) | AL123: 0 | AM123: 0
G124: 54 | Q124: 0 | R124: 0 | Z124: 54 | AK124: (ALL) | AL124: 0 | AM124: 0
G125: 55 | Q125: 0 | R125: 0 | Z125: 55 | AK125: (ALL) | AL125: 0 | AM125: 0
G126: 56 | Q126: 0 | R126: 0 | Z126: 56 | AK126: (ALL) | AL126: 0 | AM126: 0
G127: 57 | Q127: 0 | R127: 0 | Z127: 57 | AK127: (ALL) | AL127: 0 | AM127: 0
G128: =+G127+1 -> 58 | Q128: 0 | R128: 0 | Z128: 58 | AK128: =IFERROR((MID(AA128,(FIND("(",AA128)+1),(LEN(AA128))-(FIND("(",AA128)+1))),"") ->  | AL128: 0 | AM128: 0
G129: 59 | Q129: 0 | R129: 0 | Z129: 59 | AL129: 0 | AM129: 0
G130: 60 | Q130: 0 | R130: 0 | Z130: 60 | AL130: 0 | AM130: 0
G131: 61 | Q131: 0 | R131: 0 | Z131: 61 | AL131: 0 | AM131: 0
G132: 62 | Q132: 0 | R132: 0 | Z132: 62 | AL132: 0 | AM132: 0
G133: 63 | Q133: 0 | R133: 0 | Z133: 63 | AL133: 0 | AM133: 0
G134: 64 | Q134: 0 | R134: 0 | Z134: 64 | AL134: 0 | AM134: 0
G135: 65 | Q135: 0 | R135: 0 | Z135: 65 | AL135: 0 | AM135: 0
G136: 66 | Q136: =IFERROR((+N136/R136),0) -> 0 | R136: =SUMIF($M$289:$M$427,H136,$F$289:$F$427) -> 0 | Z136: 66 | AL136: =IFERROR((+AG136/AM136),0) -> 0 | AM136: =SUMIF($L$289:$L$427,AK136,$F$289:$F$427) -> 0
G137: 67 | Q137: 0 | R137: 0 | Z137: 67 | AL137: 0 | AM137: 0
G138: 68 | Q138: 0 | R138: 0 | Z138: 68 | AL138: 0 | AM138: 0
G139: 69 | Q139: 0 | R139: 0 | Z139: 69 | AL139: 0 | AM139: 0
G140: 70 | Q140: 0 | R140: 0 | Z140: 70 | AL140: 0 | AM140: 0
G141: 71 | Q141: 0 | R141: 0 | Z141: 71 | AL141: 0 | AM141: 0
G142: 72 | Q142: 0 | R142: 0 | Z142: 72 | AL142: 0 | AM142: 0
G143: 73 | Q143: 0 | R143: 0 | Z143: 73 | AL143: 0 | AM143: 0
G144: 74 | Q144: 0 | R144: 0 | Z144: 74 | AL144: 0 | AM144: 0
G145: 75 | Q145: 0 | R145: 0 | Z145: 75 | AJ145: =IFERROR((LEFT(AA145,(FIND("(",AA145)-1))),"") ->  | AK145: =IFERROR((MID(AA145,(FIND("(",AA145)+1),(LEN(AA145))-(FIND("(",AA145)+1))),"") ->  | AL145: 0 | AM145: 0
G146: 76 | Z146: 76 | AL146: 0 | AM146: 0
G147: 77 | Z147: 77 | AL147: 0 | AM147: 0
G148: 78 | Z148: 78 | AL148: 0 | AM148: 0
G149: 79 | Z149: 79 | AL149: 0 | AM149: 0
G150: 80 | Z150: 80 | AL150: 0 | AM150: 0
G151: 81 | Z151: 81 | AL151: 0 | AM151: 0
G152: 82 | Z152: 82 | AL152: 0 | AM152: 0
G153: 83 | Z153: 83 | AL153: 0 | AM153: 0
G154: 84 | Z154: 84 | AL154: 0 | AM154: 0
G155: 85 | Z155: 85 | AL155: 0 | AM155: 0
G156: 86 | Z156: 86 | AL156: 0 | AM156: 0
G157: 87 | Z157: 87 | AL157: 0 | AM157: 0
G158: 88 | Z158: 88 | AL158: 0 | AM158: 0
G159: 89 | Z159: 89 | AL159: 0 | AM159: 0
G160: 90 | Z160: 90 | AL160: 0 | AM160: 0
G161: 91 | Z161: 91 | AL161: 0 | AM161: 0
Z162: 92 | AL162: 0 | AM162: 0
Z163: 93 | AL163: 0 | AM163: 0
Z164: 94 | AL164: 0 | AM164: 0
Z165: 95 | AL165: 0 | AM165: 0
Z166: 96 | AL166: 0 | AM166: 0
Z167: 97 | AL167: 0 | AM167: 0
Z168: 98 | AL168: 0 | AM168: 0
Z169: 99 | AL169: 0 | AM169: 0
Z170: 100 | AL170: 0 | AM170: 0
Z171: 101 | AL171: 0 | AM171: 0
Z172: 102 | AL172: 0 | AM172: 0
Z173: 103 | AL173: 0 | AM173: 0
Z174: 104 | AL174: 0 | AM174: 0
Z175: 105 | AL175: 0 | AM175: 0
Z176: 106 | AL176: 0 | AM176: 0
Z177: 107 | AL177: 0 | AM177: 0
Z178: 108 | AL178: 0 | AM178: 0
Z179: 109 | AL179: 0 | AM179: 0
Z180: 110 | AL180: 0 | AM180: 0
Z181: 111 | AL181: 0 | AM181: 0
Z182: 112 | AL182: 0 | AM182: 0
Z183: 113 | AL183: 0 | AM183: 0
Z184: 114 | AL184: 0 | AM184: 0
Z185: 115 | AL185: 0 | AM185: 0
Z186: 116 | AJ186: =IFERROR((LEFT(AA186,(FIND("(",AA186)-1))),"") ->  | AK186: =IFERROR((MID(AA186,(FIND("(",AA186)+1),(LEN(AA186))-(FIND("(",AA186)+1))),"") ->  | AL186: =IFERROR((+AG186/AM186),0) -> 0 | AM186: =SUMIF($L$289:$L$427,AK186,$F$289:$F$427) -> 0
Z187: 117 | AL187: 0 | AM187: 0
Z188: 118 | AL188: 0 | AM188: 0
Z189: 119 | AL189: 0 | AM189: 0
AL190: 0 | AM190: 0
AL191: 0 | AM191: 0
G211: …………………………….. P r o c e s a n d o……………..
G274: LIN+MAR | H274: 4 | I274: J271 J500
G275: LIN+MAR+ITE | H275: 9 | I275: I271 I500
G276: LIN+ITEM | H276: 6 | I276: H271 H500
G277: MAR+ITEM | H277: 8 | I277: G271 G500
G278: TODO | H278: 0 | I278: TOTAL
G279: SOLO LINEA | H279: 1 | I279: K271 K500

Sheet Hoja2
A1: ANIMUS | B1: LINEA_ALFA
A2: DISCONTINUADOS | B2: LINEA_BETA
A3: FORTIA | B3: Linea
A4: NOVUS
A5: OPTIMUN
A6: OTROS PROD
A7: SIGNUM
A8: TEMPUS
